Department Family,Entity,Date of Payment,Expense Type,Expense Area,Supplier,Transaction Number,Amount in Sterling,Expence Discription
ECGD,ECGD,12-Jan-24,Entertainment (Home & O/seas),FOD,Clarity Travel Ltd frmly Mawasem Ltd,234,2.00,Business Travel 
ECGD,ECGD,12-Jan-24,Entertainment (Home & O/seas),FOD,Clarity Travel Ltd frmly Mawasem Ltd,234,339.52,Business Travel 
ECGD,ECGD,12-Jan-24,Entertainment (Home & O/seas),Business Group _Main ,Clarity Travel Ltd frmly Mawasem Ltd,234,139.50,Business Travel 
ECGD,ECGD,12-Jan-24,External Meeting Rooms,HRD,Clarity Travel Ltd frmly Mawasem Ltd,234,-22.64,External Meeting Rooms
ECGD,ECGD,12-Jan-24,External Meeting Rooms,HRD,Clarity Travel Ltd frmly Mawasem Ltd,234,"2,795.00",External Meeting Rooms
ECGD,ECGD,12-Jan-24,External Meeting Rooms,OCCMC,Clarity Travel Ltd frmly Mawasem Ltd,234,-22.64,Venue Hire 
ECGD,ECGD,12-Jan-24,External Meeting Rooms,OCCMC,Clarity Travel Ltd frmly Mawasem Ltd,234,"2,770.83",Venue Hire 
ECGD,ECGD,12-Jan-24,External Meeting Rooms,SPoCC,Clarity Travel Ltd frmly Mawasem Ltd,234,840.00,Venue Hire 
ECGD,ECGD,12-Jan-24,External Meeting Rooms,SPoCC,Clarity Travel Ltd frmly Mawasem Ltd,234,"2,325.00",Venue Hire 
ECGD,ECGD,12-Jan-24,Home Travel /Subsistence,Business Group _ Main,Clarity Travel Ltd frmly Mawasem Ltd,234,1.00,Business Travel 
ECGD,ECGD,12-Jan-24,Home Travel /Subsistence,Business Group _ Main,Clarity Travel Ltd frmly Mawasem Ltd,234,1.00,Business Travel 
ECGD,ECGD,12-Jan-24,Home Travel /Subsistence,Business Group _ Main,Clarity Travel Ltd frmly Mawasem Ltd,234,1.00,Business Travel 
ECGD,ECGD,12-Jan-24,Home Travel /Subsistence,Business Group _ Main,Clarity Travel Ltd frmly Mawasem Ltd,234,1.00,Business Travel 
ECGD,ECGD,12-Jan-24,Home Travel /Subsistence,Business Group _ Main,Clarity Travel Ltd frmly Mawasem Ltd,234,1.00,Business Travel 
ECGD,ECGD,12-Jan-24,Home Travel /Subsistence,Business Group _ Main,Clarity Travel Ltd frmly Mawasem Ltd,234,2.00,Business Travel 
ECGD,ECGD,12-Jan-24,Home Travel /Subsistence,Business Group _ Main,Clarity Travel Ltd frmly Mawasem Ltd,234,2.00,Business Travel 
ECGD,ECGD,12-Jan-24,Home Travel /Subsistence,Business Group _ Main,Clarity Travel Ltd frmly Mawasem Ltd,234,2.00,Business Travel 
ECGD,ECGD,12-Jan-24,Home Travel /Subsistence,Business Group _ Main,Clarity Travel Ltd frmly Mawasem Ltd,234,2.00,Business Travel 
ECGD,ECGD,12-Jan-24,Home Travel /Subsistence,Business Group _ Main,Clarity Travel Ltd frmly Mawasem Ltd,234,2.00,Business Travel 
ECGD,ECGD,12-Jan-24,Home Travel /Subsistence,Business Group _ Main,Clarity Travel Ltd frmly Mawasem Ltd,234,2.00,Business Travel 
ECGD,ECGD,12-Jan-24,Home Travel /Subsistence,Business Group _ Main,Clarity Travel Ltd frmly Mawasem Ltd,234,2.00,Business Travel 
ECGD,ECGD,12-Jan-24,Home Travel /Subsistence,Business Group _ Main,Clarity Travel Ltd frmly Mawasem Ltd,234,3.50,Business Travel 
ECGD,ECGD,12-Jan-24,Home Travel /Subsistence,Business Group _ Main,Clarity Travel Ltd frmly Mawasem Ltd,234,3.50,Business Travel 
ECGD,ECGD,12-Jan-24,Home Travel /Subsistence,Business Group _ Main,Clarity Travel Ltd frmly Mawasem Ltd,234,3.50,Business Travel 
ECGD,ECGD,12-Jan-24,Home Travel /Subsistence,Business Group _ Main,Clarity Travel Ltd frmly Mawasem Ltd,234,3.50,Business Travel 
ECGD,ECGD,12-Jan-24,Home Travel /Subsistence,Business Group _ Main,Clarity Travel Ltd frmly Mawasem Ltd,234,3.50,Business Travel 
ECGD,ECGD,12-Jan-24,Home Travel /Subsistence,Business Group _ Main,Clarity Travel Ltd frmly Mawasem Ltd,234,3.50,Business Travel 
ECGD,ECGD,12-Jan-24,Home Travel /Subsistence,Business Group _ Main,Clarity Travel Ltd frmly Mawasem Ltd,234,4.50,Business Travel 
ECGD,ECGD,12-Jan-24,Home Travel /Subsistence,Business Group _ Main,Clarity Travel Ltd frmly Mawasem Ltd,234,5.50,Business Travel 
ECGD,ECGD,12-Jan-24,Home Travel /Subsistence,Business Group _ Main,Clarity Travel Ltd frmly Mawasem Ltd,234,6.50,Business Travel 
ECGD,ECGD,12-Jan-24,Home Travel /Subsistence,Business Group _ Main,Clarity Travel Ltd frmly Mawasem Ltd,234,7.00,Business Travel 
ECGD,ECGD,12-Jan-24,Home Travel /Subsistence,Business Group _ Main,Clarity Travel Ltd frmly Mawasem Ltd,234,7.00,Business Travel 
ECGD,ECGD,12-Jan-24,Home Travel /Subsistence,Business Group _ Main,Clarity Travel Ltd frmly Mawasem Ltd,234,7.00,Business Travel 
ECGD,ECGD,12-Jan-24,Home Travel /Subsistence,Business Group _ Main,Clarity Travel Ltd frmly Mawasem Ltd,234,10.50,Business Travel 
ECGD,ECGD,12-Jan-24,Home Travel /Subsistence,Business Group _ Main,Clarity Travel Ltd frmly Mawasem Ltd,234,31.65,Business Travel 
ECGD,ECGD,12-Jan-24,Home Travel /Subsistence,Business Group _ Main,Clarity Travel Ltd frmly Mawasem Ltd,234,37.00,Business Travel 
ECGD,ECGD,12-Jan-24,Home Travel /Subsistence,Business Group _ Main,Clarity Travel Ltd frmly Mawasem Ltd,234,37.00,Business Travel 
ECGD,ECGD,12-Jan-24,Home Travel /Subsistence,Business Group _ Main,Clarity Travel Ltd frmly Mawasem Ltd,234,46.00,Business Travel 
ECGD,ECGD,12-Jan-24,Home Travel /Subsistence,Business Group _ Main,Clarity Travel Ltd frmly Mawasem Ltd,234,46.00,Business Travel 
ECGD,ECGD,12-Jan-24,Home Travel /Subsistence,Business Group _ Main,Clarity Travel Ltd frmly Mawasem Ltd,234,51.24,Business Travel 
ECGD,ECGD,12-Jan-24,Home Travel /Subsistence,Business Group _ Main,Clarity Travel Ltd frmly Mawasem Ltd,234,64.17,Business Travel 
ECGD,ECGD,12-Jan-24,Home Travel /Subsistence,Business Group _ Main,Clarity Travel Ltd frmly Mawasem Ltd,234,65.12,Business Travel 
ECGD,ECGD,12-Jan-24,Home Travel /Subsistence,Business Group _ Main,Clarity Travel Ltd frmly Mawasem Ltd,234,69.99,Business Travel 
ECGD,ECGD,12-Jan-24,Home Travel /Subsistence,Business Group _ Main,Clarity Travel Ltd frmly Mawasem Ltd,234,79.33,Business Travel 
ECGD,ECGD,12-Jan-24,Home Travel /Subsistence,Business Group _ Main,Clarity Travel Ltd frmly Mawasem Ltd,234,80.30,Business Travel 
ECGD,ECGD,12-Jan-24,Home Travel /Subsistence,Business Group _ Main,Clarity Travel Ltd frmly Mawasem Ltd,234,87.50,Business Travel 
ECGD,ECGD,12-Jan-24,Home Travel /Subsistence,Business Group _ Main,Clarity Travel Ltd frmly Mawasem Ltd,234,93.60,Business Travel 
ECGD,ECGD,12-Jan-24,Home Travel /Subsistence,Business Group _ Main,Clarity Travel Ltd frmly Mawasem Ltd,234,93.60,Business Travel 
ECGD,ECGD,12-Jan-24,Home Travel /Subsistence,Business Group _ Main,Clarity Travel Ltd frmly Mawasem Ltd,234,108.33,Business Travel 
ECGD,ECGD,12-Jan-24,Home Travel /Subsistence,Business Group _ Main,Clarity Travel Ltd frmly Mawasem Ltd,234,116.46,Business Travel 
ECGD,ECGD,12-Jan-24,Home Travel /Subsistence,Business Group _ Main,Clarity Travel Ltd frmly Mawasem Ltd,234,119.74,Business Travel 
ECGD,ECGD,12-Jan-24,Home Travel /Subsistence,Business Group _ Main,Clarity Travel Ltd frmly Mawasem Ltd,234,119.74,Business Travel 
ECGD,ECGD,12-Jan-24,Home Travel /Subsistence,Business Group _ Main,Clarity Travel Ltd frmly Mawasem Ltd,234,119.74,Business Travel 
ECGD,ECGD,12-Jan-24,Home Travel /Subsistence,Business Group _ Main,Clarity Travel Ltd frmly Mawasem Ltd,234,124.98,Business Travel 
ECGD,ECGD,12-Jan-24,Home Travel /Subsistence,Business Group _ Main,Clarity Travel Ltd frmly Mawasem Ltd,234,126.10,Business Travel 
ECGD,ECGD,12-Jan-24,Home Travel /Subsistence,Business Group _ Main,Clarity Travel Ltd frmly Mawasem Ltd,234,151.67,Business Travel 
ECGD,ECGD,12-Jan-24,Home Travel /Subsistence,Business Group _ Main,Clarity Travel Ltd frmly Mawasem Ltd,234,160.60,Business Travel 
ECGD,ECGD,12-Jan-24,Home Travel /Subsistence,Business Group _ Main,Clarity Travel Ltd frmly Mawasem Ltd,234,171.70,Business Travel 
ECGD,ECGD,12-Jan-24,Home Travel /Subsistence,Business Group _ Main,Clarity Travel Ltd frmly Mawasem Ltd,234,217.53,Business Travel 
ECGD,ECGD,12-Jan-24,Home Travel /Subsistence,Business Group _ Main,Clarity Travel Ltd frmly Mawasem Ltd,234,241.67,Business Travel 
ECGD,ECGD,12-Jan-24,Home Travel /Subsistence,Business Group _ Main,Clarity Travel Ltd frmly Mawasem Ltd,234,262.66,Business Travel 
ECGD,ECGD,12-Jan-24,Home Travel /Subsistence,Business Group _ Main,Clarity Travel Ltd frmly Mawasem Ltd,234,319.05,Business Travel 
ECGD,ECGD,12-Jan-24,Home Travel /Subsistence,Business Group _ Main,Clarity Travel Ltd frmly Mawasem Ltd,234,358.33,Business Travel 
ECGD,ECGD,12-Jan-24,Home Travel /Subsistence,Business Group _ Main,Clarity Travel Ltd frmly Mawasem Ltd,234,406.96,Business Travel 
ECGD,ECGD,12-Jan-24,Home Travel /Subsistence,Business Group _ Main,Clarity Travel Ltd frmly Mawasem Ltd,234,433.82,Business Travel 
ECGD,ECGD,12-Jan-24,Home Travel /Subsistence,Business Group _ Main,Clarity Travel Ltd frmly Mawasem Ltd,234,541.73,Business Travel 
ECGD,ECGD,12-Jan-24,Home Travel /Subsistence,Business Group _ Main,Clarity Travel Ltd frmly Mawasem Ltd,234,"1,458.33",Business Travel 
ECGD,ECGD,12-Jan-24,Home Travel /Subsistence,Digital and Data Division,Clarity Travel Ltd frmly Mawasem Ltd,234,1.00,Business Travel 
ECGD,ECGD,12-Jan-24,Home Travel /Subsistence,Digital and Data Division,Clarity Travel Ltd frmly Mawasem Ltd,234,2.00,Business Travel 
ECGD,ECGD,12-Jan-24,Home Travel /Subsistence,Digital and Data Division,Clarity Travel Ltd frmly Mawasem Ltd,234,2.00,Business Travel 
ECGD,ECGD,12-Jan-24,Home Travel /Subsistence,Digital and Data Division,Clarity Travel Ltd frmly Mawasem Ltd,234,36.80,Business Travel 
ECGD,ECGD,12-Jan-24,Home Travel /Subsistence,Digital and Data Division,Clarity Travel Ltd frmly Mawasem Ltd,234,148.30,Business Travel 
ECGD,ECGD,12-Jan-24,Home Travel /Subsistence,Digital and Data Division,Clarity Travel Ltd frmly Mawasem Ltd,234,150.50,Business Travel 
ECGD,ECGD,12-Jan-24,Home Travel /Subsistence,FOD,Clarity Travel Ltd frmly Mawasem Ltd,234,7.00,Business Travel 
ECGD,ECGD,12-Jan-24,Home Travel /Subsistence,FOD,Clarity Travel Ltd frmly Mawasem Ltd,234,288.00,Business Travel 
ECGD,ECGD,12-Jan-24,Home Travel /Subsistence,HRD,Clarity Travel Ltd frmly Mawasem Ltd,234,1.00,Business Travel 
ECGD,ECGD,12-Jan-24,Home Travel /Subsistence,HRD,Clarity Travel Ltd frmly Mawasem Ltd,234,1.00,Business Travel 
ECGD,ECGD,12-Jan-24,Home Travel /Subsistence,HRD,Clarity Travel Ltd frmly Mawasem Ltd,234,1.00,Business Travel 
ECGD,ECGD,12-Jan-24,Home Travel /Subsistence,HRD,Clarity Travel Ltd frmly Mawasem Ltd,234,1.00,Business Travel 
ECGD,ECGD,12-Jan-24,Home Travel /Subsistence,HRD,Clarity Travel Ltd frmly Mawasem Ltd,234,1.00,Business Travel 
ECGD,ECGD,12-Jan-24,Home Travel /Subsistence,HRD,Clarity Travel Ltd frmly Mawasem Ltd,234,1.00,Business Travel 
ECGD,ECGD,12-Jan-24,Home Travel /Subsistence,HRD,Clarity Travel Ltd frmly Mawasem Ltd,234,1.00,Business Travel 
ECGD,ECGD,12-Jan-24,Home Travel /Subsistence,HRD,Clarity Travel Ltd frmly Mawasem Ltd,234,1.00,Business Travel 
ECGD,ECGD,12-Jan-24,Home Travel /Subsistence,HRD,Clarity Travel Ltd frmly Mawasem Ltd,234,2.00,Business Travel 
ECGD,ECGD,12-Jan-24,Home Travel /Subsistence,HRD,Clarity Travel Ltd frmly Mawasem Ltd,234,2.00,Business Travel 
ECGD,ECGD,12-Jan-24,Home Travel /Subsistence,HRD,Clarity Travel Ltd frmly Mawasem Ltd,234,2.00,Business Travel 
ECGD,ECGD,12-Jan-24,Home Travel /Subsistence,HRD,Clarity Travel Ltd frmly Mawasem Ltd,234,2.00,Business Travel 
ECGD,ECGD,12-Jan-24,Home Travel /Subsistence,HRD,Clarity Travel Ltd frmly Mawasem Ltd,234,2.00,Business Travel 
ECGD,ECGD,12-Jan-24,Home Travel /Subsistence,HRD,Clarity Travel Ltd frmly Mawasem Ltd,234,4.00,Business Travel 
ECGD,ECGD,12-Jan-24,Home Travel /Subsistence,HRD,Clarity Travel Ltd frmly Mawasem Ltd,234,4.00,Business Travel 
ECGD,ECGD,12-Jan-24,Home Travel /Subsistence,HRD,Clarity Travel Ltd frmly Mawasem Ltd,234,28.90,Business Travel 
ECGD,ECGD,12-Jan-24,Home Travel /Subsistence,HRD,Clarity Travel Ltd frmly Mawasem Ltd,234,34.00,Business Travel 
ECGD,ECGD,12-Jan-24,Home Travel /Subsistence,HRD,Clarity Travel Ltd frmly Mawasem Ltd,234,37.00,Business Travel 
ECGD,ECGD,12-Jan-24,Home Travel /Subsistence,HRD,Clarity Travel Ltd frmly Mawasem Ltd,234,37.00,Business Travel 
ECGD,ECGD,12-Jan-24,Home Travel /Subsistence,HRD,Clarity Travel Ltd frmly Mawasem Ltd,234,37.00,Business Travel 
ECGD,ECGD,12-Jan-24,Home Travel /Subsistence,HRD,Clarity Travel Ltd frmly Mawasem Ltd,234,37.00,Business Travel 
ECGD,ECGD,12-Jan-24,Home Travel /Subsistence,HRD,Clarity Travel Ltd frmly Mawasem Ltd,234,103.90,Business Travel 
ECGD,ECGD,12-Jan-24,Home Travel /Subsistence,HRD,Clarity Travel Ltd frmly Mawasem Ltd,234,122.00,Business Travel 
ECGD,ECGD,12-Jan-24,Home Travel /Subsistence,HRD,Clarity Travel Ltd frmly Mawasem Ltd,234,147.10,Business Travel 
ECGD,ECGD,12-Jan-24,Home Travel /Subsistence,HRD,Clarity Travel Ltd frmly Mawasem Ltd,234,160.10,Business Travel 
ECGD,ECGD,12-Jan-24,Home Travel /Subsistence,HRD,Clarity Travel Ltd frmly Mawasem Ltd,234,181.44,Business Travel 
ECGD,ECGD,12-Jan-24,Home Travel /Subsistence,HRD,Clarity Travel Ltd frmly Mawasem Ltd,234,181.44,Business Travel 
ECGD,ECGD,12-Jan-24,Home Travel /Subsistence,HRD,Clarity Travel Ltd frmly Mawasem Ltd,234,181.44,Business Travel 
ECGD,ECGD,12-Jan-24,Home Travel /Subsistence,HRD,Clarity Travel Ltd frmly Mawasem Ltd,234,181.44,Business Travel 
ECGD,ECGD,12-Jan-24,Home Travel /Subsistence,HRD,Clarity Travel Ltd frmly Mawasem Ltd,234,201.73,Business Travel 
ECGD,ECGD,12-Jan-24,Home Travel /Subsistence,HRD,Clarity Travel Ltd frmly Mawasem Ltd,234,225.90,Business Travel 
ECGD,ECGD,12-Jan-24,Home Travel /Subsistence,LD,Clarity Travel Ltd frmly Mawasem Ltd,234,1.00,Business Travel 
ECGD,ECGD,12-Jan-24,Home Travel /Subsistence,LD,Clarity Travel Ltd frmly Mawasem Ltd,234,1.00,Business Travel 
ECGD,ECGD,12-Jan-24,Home Travel /Subsistence,LD,Clarity Travel Ltd frmly Mawasem Ltd,234,48.50,Business Travel 
ECGD,ECGD,12-Jan-24,Home Travel /Subsistence,LD,Clarity Travel Ltd frmly Mawasem Ltd,234,67.50,Business Travel 
ECGD,ECGD,12-Jan-24,Home Travel /Subsistence,Risk Approval Division,Clarity Travel Ltd frmly Mawasem Ltd,234,2.00,Business Travel 
ECGD,ECGD,12-Jan-24,Home Travel /Subsistence,Risk Approval Division,Clarity Travel Ltd frmly Mawasem Ltd,234,87.50,Business Travel 
ECGD,ECGD,12-Jan-24,Home Travel /Subsistence,SPoCC,Clarity Travel Ltd frmly Mawasem Ltd,234,1.00,Business Travel 
ECGD,ECGD,12-Jan-24,Home Travel /Subsistence,SPoCC,Clarity Travel Ltd frmly Mawasem Ltd,234,1.00,Business Travel 
ECGD,ECGD,12-Jan-24,Home Travel /Subsistence,SPoCC,Clarity Travel Ltd frmly Mawasem Ltd,234,1.00,Business Travel 
ECGD,ECGD,12-Jan-24,Home Travel /Subsistence,SPoCC,Clarity Travel Ltd frmly Mawasem Ltd,234,1.00,Business Travel 
ECGD,ECGD,12-Jan-24,Home Travel /Subsistence,SPoCC,Clarity Travel Ltd frmly Mawasem Ltd,234,2.00,Business Travel 
ECGD,ECGD,12-Jan-24,Home Travel /Subsistence,SPoCC,Clarity Travel Ltd frmly Mawasem Ltd,234,2.00,Business Travel 
ECGD,ECGD,12-Jan-24,Home Travel /Subsistence,SPoCC,Clarity Travel Ltd frmly Mawasem Ltd,234,39.00,Business Travel 
ECGD,ECGD,12-Jan-24,Home Travel /Subsistence,SPoCC,Clarity Travel Ltd frmly Mawasem Ltd,234,99.20,Business Travel 
ECGD,ECGD,12-Jan-24,Home Travel /Subsistence,SPoCC,Clarity Travel Ltd frmly Mawasem Ltd,234,105.70,Business Travel 
ECGD,ECGD,12-Jan-24,Home Travel /Subsistence,SPoCC,Clarity Travel Ltd frmly Mawasem Ltd,234,129.17,Business Travel 
ECGD,ECGD,12-Jan-24,Home Travel /Subsistence,SPoCC,Clarity Travel Ltd frmly Mawasem Ltd,234,144.10,Business Travel 
ECGD,ECGD,12-Jan-24,Home Travel /Subsistence,SPoCC,Clarity Travel Ltd frmly Mawasem Ltd,234,158.40,Business Travel 
ECGD,ECGD,12-Jan-24,Home Travel /Subsistence,SPoCC,Clarity Travel Ltd frmly Mawasem Ltd,234,165.34,Business Travel 
ECGD,ECGD,12-Jan-24,Overseas Travel (Case Related),Business Group _ Main,Clarity Travel Ltd frmly Mawasem Ltd,234,7.00,Business Travel 
ECGD,ECGD,12-Jan-24,Overseas Travel (Case Related),Business Group _ Main,Clarity Travel Ltd frmly Mawasem Ltd,234,8.00,Business Travel 
ECGD,ECGD,12-Jan-24,Overseas Travel (Case Related),Business Group _ Main,Clarity Travel Ltd frmly Mawasem Ltd,234,60.15,Business Travel 
ECGD,ECGD,12-Jan-24,Overseas Travel (Case Related),Business Group _ Main,Clarity Travel Ltd frmly Mawasem Ltd,234,288.00,Business Travel 
ECGD,ECGD,12-Jan-24,Overseas Travel (Case Related),Business Group _ Main,Clarity Travel Ltd frmly Mawasem Ltd,234,288.00,Business Travel 
ECGD,ECGD,12-Jan-24,Overseas Travel (Case Related),Portfolio Management Division,Clarity Travel Ltd frmly Mawasem Ltd,234,2.00,Business Travel 
ECGD,ECGD,12-Jan-24,Overseas Travel (Case Related),Portfolio Management Division,Clarity Travel Ltd frmly Mawasem Ltd,234,7.00,Business Travel 
ECGD,ECGD,12-Jan-24,Overseas Travel (Case Related),Portfolio Management Division,Clarity Travel Ltd frmly Mawasem Ltd,234,9.00,Business Travel 
ECGD,ECGD,12-Jan-24,Overseas Travel (Case Related),Portfolio Management Division,Clarity Travel Ltd frmly Mawasem Ltd,234,9.00,Business Travel 
ECGD,ECGD,12-Jan-24,Overseas Travel (Case Related),Portfolio Management Division,Clarity Travel Ltd frmly Mawasem Ltd,234,220.58,Business Travel 
ECGD,ECGD,12-Jan-24,Overseas Travel (Case Related),Portfolio Management Division,Clarity Travel Ltd frmly Mawasem Ltd,234,613.08,Business Travel 
ECGD,ECGD,12-Jan-24,Overseas Travel (Case Related),Portfolio Management Division,Clarity Travel Ltd frmly Mawasem Ltd,234,833.66,Business Travel 
ECGD,ECGD,12-Jan-24,Overseas Travel (Case Related),Portfolio Management Division,Clarity Travel Ltd frmly Mawasem Ltd,234,833.66,Business Travel 
ECGD,ECGD,12-Jan-24,Overseas Travel (Case Related),SPoCC,Clarity Travel Ltd frmly Mawasem Ltd,234,67.00,Business Travel 
ECGD,ECGD,12-Jan-24,Overseas Travel/Subsistence,Business Group _ Main,Clarity Travel Ltd frmly Mawasem Ltd,234,-502.82,Business Travel 
ECGD,ECGD,12-Jan-24,Overseas Travel/Subsistence,Business Group _ Main,Clarity Travel Ltd frmly Mawasem Ltd,234,7.00,Business Travel 
ECGD,ECGD,12-Jan-24,Overseas Travel/Subsistence,Business Group _ Main,Clarity Travel Ltd frmly Mawasem Ltd,234,"3,695.21",Business Travel 
ECGD,ECGD,12-Jan-24,Overseas Travel/Subsistence,HRD,Clarity Travel Ltd frmly Mawasem Ltd,234,7.00,Business Travel 
ECGD,ECGD,12-Jan-24,Overseas Travel/Subsistence,HRD,Clarity Travel Ltd frmly Mawasem Ltd,234,304.03,Business Travel 
ECGD,ECGD,12-Jan-24,Overseas Travel/Subsistence,OCCMC,Clarity Travel Ltd frmly Mawasem Ltd,234,2.00,Business Travel 
ECGD,ECGD,12-Jan-24,Overseas Travel/Subsistence,OCCMC,Clarity Travel Ltd frmly Mawasem Ltd,234,2.00,Business Travel 
ECGD,ECGD,12-Jan-24,Overseas Travel/Subsistence,OCCMC,Clarity Travel Ltd frmly Mawasem Ltd,234,116.25,Business Travel 
ECGD,ECGD,12-Jan-24,Overseas Travel/Subsistence,OCCMC,Clarity Travel Ltd frmly Mawasem Ltd,234,116.25,Business Travel 
ECGD,ECGD,12-Jan-24,Overseas Travel/Subsistence,OCCMC,Clarity Travel Ltd frmly Mawasem Ltd,234,"-5,950.61",Business Travel 
ECGD,ECGD,12-Jan-24,Overseas Travel/Subsistence,OCCMC,Clarity Travel Ltd frmly Mawasem Ltd,234,0.00,Business Travel 
ECGD,ECGD,12-Jan-24,Overseas Travel/Subsistence,OCCMC,Clarity Travel Ltd frmly Mawasem Ltd,234,0.00,Business Travel 
ECGD,ECGD,12-Jan-24,Overseas Travel/Subsistence,OCCMC,Clarity Travel Ltd frmly Mawasem Ltd,234,0.30,Business Travel 
ECGD,ECGD,12-Jan-24,Overseas Travel/Subsistence,OCCMC,Clarity Travel Ltd frmly Mawasem Ltd,234,1.00,Business Travel 
ECGD,ECGD,12-Jan-24,Overseas Travel/Subsistence,OCCMC,Clarity Travel Ltd frmly Mawasem Ltd,234,1.00,Business Travel 
ECGD,ECGD,12-Jan-24,Overseas Travel/Subsistence,OCCMC,Clarity Travel Ltd frmly Mawasem Ltd,234,1.00,Business Travel 
ECGD,ECGD,12-Jan-24,Overseas Travel/Subsistence,OCCMC,Clarity Travel Ltd frmly Mawasem Ltd,234,2.00,Business Travel 
ECGD,ECGD,12-Jan-24,Overseas Travel/Subsistence,OCCMC,Clarity Travel Ltd frmly Mawasem Ltd,234,2.00,Business Travel 
ECGD,ECGD,12-Jan-24,Overseas Travel/Subsistence,OCCMC,Clarity Travel Ltd frmly Mawasem Ltd,234,2.00,Business Travel 
ECGD,ECGD,12-Jan-24,Overseas Travel/Subsistence,OCCMC,Clarity Travel Ltd frmly Mawasem Ltd,234,2.00,Business Travel 
ECGD,ECGD,12-Jan-24,Overseas Travel/Subsistence,OCCMC,Clarity Travel Ltd frmly Mawasem Ltd,234,2.00,Business Travel 
ECGD,ECGD,12-Jan-24,Overseas Travel/Subsistence,OCCMC,Clarity Travel Ltd frmly Mawasem Ltd,234,2.00,Business Travel 
ECGD,ECGD,12-Jan-24,Overseas Travel/Subsistence,OCCMC,Clarity Travel Ltd frmly Mawasem Ltd,234,2.00,Business Travel 
ECGD,ECGD,12-Jan-24,Overseas Travel/Subsistence,OCCMC,Clarity Travel Ltd frmly Mawasem Ltd,234,2.00,Business Travel 
ECGD,ECGD,12-Jan-24,Overseas Travel/Subsistence,OCCMC,Clarity Travel Ltd frmly Mawasem Ltd,234,2.00,Business Travel 
ECGD,ECGD,12-Jan-24,Overseas Travel/Subsistence,OCCMC,Clarity Travel Ltd frmly Mawasem Ltd,234,3.50,Business Travel 
ECGD,ECGD,12-Jan-24,Overseas Travel/Subsistence,OCCMC,Clarity Travel Ltd frmly Mawasem Ltd,234,3.50,Business Travel 
ECGD,ECGD,12-Jan-24,Overseas Travel/Subsistence,OCCMC,Clarity Travel Ltd frmly Mawasem Ltd,234,3.50,Business Travel 
ECGD,ECGD,12-Jan-24,Overseas Travel/Subsistence,OCCMC,Clarity Travel Ltd frmly Mawasem Ltd,234,4.00,Business Travel 
ECGD,ECGD,12-Jan-24,Overseas Travel/Subsistence,OCCMC,Clarity Travel Ltd frmly Mawasem Ltd,234,5.00,Business Travel 
ECGD,ECGD,12-Jan-24,Overseas Travel/Subsistence,OCCMC,Clarity Travel Ltd frmly Mawasem Ltd,234,7.00,Business Travel 
ECGD,ECGD,12-Jan-24,Overseas Travel/Subsistence,OCCMC,Clarity Travel Ltd frmly Mawasem Ltd,234,7.00,Business Travel 
ECGD,ECGD,12-Jan-24,Overseas Travel/Subsistence,OCCMC,Clarity Travel Ltd frmly Mawasem Ltd,234,7.00,Business Travel 
ECGD,ECGD,12-Jan-24,Overseas Travel/Subsistence,OCCMC,Clarity Travel Ltd frmly Mawasem Ltd,234,7.00,Business Travel 
ECGD,ECGD,12-Jan-24,Overseas Travel/Subsistence,OCCMC,Clarity Travel Ltd frmly Mawasem Ltd,234,7.00,Business Travel 
ECGD,ECGD,12-Jan-24,Overseas Travel/Subsistence,OCCMC,Clarity Travel Ltd frmly Mawasem Ltd,234,7.00,Business Travel 
ECGD,ECGD,12-Jan-24,Overseas Travel/Subsistence,OCCMC,Clarity Travel Ltd frmly Mawasem Ltd,234,7.00,Business Travel 
ECGD,ECGD,12-Jan-24,Overseas Travel/Subsistence,OCCMC,Clarity Travel Ltd frmly Mawasem Ltd,234,7.00,Business Travel 
ECGD,ECGD,12-Jan-24,Overseas Travel/Subsistence,OCCMC,Clarity Travel Ltd frmly Mawasem Ltd,234,50.10,Business Travel 
ECGD,ECGD,12-Jan-24,Overseas Travel/Subsistence,OCCMC,Clarity Travel Ltd frmly Mawasem Ltd,234,50.10,Business Travel 
ECGD,ECGD,12-Jan-24,Overseas Travel/Subsistence,OCCMC,Clarity Travel Ltd frmly Mawasem Ltd,234,69.20,Business Travel 
ECGD,ECGD,12-Jan-24,Overseas Travel/Subsistence,OCCMC,Clarity Travel Ltd frmly Mawasem Ltd,234,73.70,Business Travel 
ECGD,ECGD,12-Jan-24,Overseas Travel/Subsistence,OCCMC,Clarity Travel Ltd frmly Mawasem Ltd,234,122.50,Business Travel 
ECGD,ECGD,12-Jan-24,Overseas Travel/Subsistence,OCCMC,Clarity Travel Ltd frmly Mawasem Ltd,234,122.50,Business Travel 
ECGD,ECGD,12-Jan-24,Overseas Travel/Subsistence,OCCMC,Clarity Travel Ltd frmly Mawasem Ltd,234,142.90,Business Travel 
ECGD,ECGD,12-Jan-24,Overseas Travel/Subsistence,OCCMC,Clarity Travel Ltd frmly Mawasem Ltd,234,174.40,Business Travel 
ECGD,ECGD,12-Jan-24,Overseas Travel/Subsistence,OCCMC,Clarity Travel Ltd frmly Mawasem Ltd,234,187.97,Business Travel 
ECGD,ECGD,12-Jan-24,Overseas Travel/Subsistence,OCCMC,Clarity Travel Ltd frmly Mawasem Ltd,234,191.13,Business Travel 
ECGD,ECGD,12-Jan-24,Overseas Travel/Subsistence,OCCMC,Clarity Travel Ltd frmly Mawasem Ltd,234,191.13,Business Travel 
ECGD,ECGD,12-Jan-24,Overseas Travel/Subsistence,OCCMC,Clarity Travel Ltd frmly Mawasem Ltd,234,194.70,Business Travel 
ECGD,ECGD,12-Jan-24,Overseas Travel/Subsistence,OCCMC,Clarity Travel Ltd frmly Mawasem Ltd,234,208.50,Business Travel 
ECGD,ECGD,12-Jan-24,Overseas Travel/Subsistence,OCCMC,Clarity Travel Ltd frmly Mawasem Ltd,234,208.50,Business Travel 
ECGD,ECGD,12-Jan-24,Overseas Travel/Subsistence,OCCMC,Clarity Travel Ltd frmly Mawasem Ltd,234,231.04,Business Travel 
ECGD,ECGD,12-Jan-24,Overseas Travel/Subsistence,OCCMC,Clarity Travel Ltd frmly Mawasem Ltd,234,231.04,Business Travel 
ECGD,ECGD,12-Jan-24,Overseas Travel/Subsistence,OCCMC,Clarity Travel Ltd frmly Mawasem Ltd,234,259.35,Business Travel 
ECGD,ECGD,12-Jan-24,Overseas Travel/Subsistence,OCCMC,Clarity Travel Ltd frmly Mawasem Ltd,234,275.28,Business Travel 
ECGD,ECGD,12-Jan-24,Overseas Travel/Subsistence,OCCMC,Clarity Travel Ltd frmly Mawasem Ltd,234,275.28,Business Travel 
ECGD,ECGD,12-Jan-24,Overseas Travel/Subsistence,OCCMC,Clarity Travel Ltd frmly Mawasem Ltd,234,560.43,Business Travel 
ECGD,ECGD,12-Jan-24,Overseas Travel/Subsistence,OCCMC,Clarity Travel Ltd frmly Mawasem Ltd,234,724.17,Business Travel 
ECGD,ECGD,12-Jan-24,Overseas Travel/Subsistence,OCCMC,Clarity Travel Ltd frmly Mawasem Ltd,234,"5,207.00",Business Travel 
ECGD,ECGD,12-Jan-24,Overseas Travel/Subsistence,OCCMC,Clarity Travel Ltd frmly Mawasem Ltd,234,"6,806.41",Business Travel 
ECGD,ECGD,12-Jan-24,Overseas Travel/Subsistence,OCCMC,Clarity Travel Ltd frmly Mawasem Ltd,234,"6,893.31",Business Travel 
ECGD,ECGD,12-Jan-24,Overseas Travel/Subsistence,OCCMC,Clarity Travel Ltd frmly Mawasem Ltd,234,"6,893.31",Business Travel 
ECGD,ECGD,12-Jan-24,Overseas Travel/Subsistence,Pricing & Risk Analytics Division,Clarity Travel Ltd frmly Mawasem Ltd,234,9.00,Business Travel 
ECGD,ECGD,12-Jan-24,Overseas Travel/Subsistence,Pricing & Risk Analytics Division,Clarity Travel Ltd frmly Mawasem Ltd,234,632.88,Business Travel 
ECGD,ECGD,12-Jan-24,Overseas Travel/Subsistence,Risk Approval Division,Clarity Travel Ltd frmly Mawasem Ltd,234,7.00,Business Travel 
ECGD,ECGD,12-Jan-24,Overseas Travel/Subsistence,Risk Approval Division,Clarity Travel Ltd frmly Mawasem Ltd,234,7.00,Business Travel 
ECGD,ECGD,12-Jan-24,Overseas Travel/Subsistence,Risk Approval Division,Clarity Travel Ltd frmly Mawasem Ltd,234,105.98,Business Travel 
ECGD,ECGD,12-Jan-24,Overseas Travel/Subsistence,Risk Approval Division,Clarity Travel Ltd frmly Mawasem Ltd,234,153.82,Business Travel 
ECGD,ECGD,12-Jan-24,Overseas Travel/Subsistence,SPoCC,Clarity Travel Ltd frmly Mawasem Ltd,234,"-2,078.91",Business Travel 
ECGD,ECGD,12-Jan-24,Overseas Travel/Subsistence,SPoCC,Clarity Travel Ltd frmly Mawasem Ltd,234,"-1,853.91",Business Travel 
ECGD,ECGD,12-Jan-24,Overseas Travel/Subsistence,SPoCC,Clarity Travel Ltd frmly Mawasem Ltd,234,0.00,Business Travel 
ECGD,ECGD,12-Jan-24,Overseas Travel/Subsistence,SPoCC,Clarity Travel Ltd frmly Mawasem Ltd,234,0.00,Business Travel 
ECGD,ECGD,12-Jan-24,Overseas Travel/Subsistence,SPoCC,Clarity Travel Ltd frmly Mawasem Ltd,234,0.00,Business Travel 
ECGD,ECGD,12-Jan-24,Overseas Travel/Subsistence,SPoCC,Clarity Travel Ltd frmly Mawasem Ltd,234,2.00,Business Travel 
ECGD,ECGD,12-Jan-24,Overseas Travel/Subsistence,OCCMC,Clarity Travel Ltd frmly Mawasem Ltd,234,2.00,Business Travel 
ECGD,ECGD,12-Jan-24,Overseas Travel/Subsistence,OCCMC,Clarity Travel Ltd frmly Mawasem Ltd,234,2.00,Business Travel 
ECGD,ECGD,12-Jan-24,Overseas Travel/Subsistence,SPoCC,Clarity Travel Ltd frmly Mawasem Ltd,234,3.50,Business Travel 
ECGD,ECGD,12-Jan-24,Overseas Travel/Subsistence,SPoCC,Clarity Travel Ltd frmly Mawasem Ltd,234,3.50,Business Travel 
ECGD,ECGD,12-Jan-24,Overseas Travel/Subsistence,SPoCC,Clarity Travel Ltd frmly Mawasem Ltd,234,3.50,Business Travel 
ECGD,ECGD,12-Jan-24,Overseas Travel/Subsistence,SPoCC,Clarity Travel Ltd frmly Mawasem Ltd,234,7.00,Business Travel 
ECGD,ECGD,12-Jan-24,Overseas Travel/Subsistence,SPoCC,Clarity Travel Ltd frmly Mawasem Ltd,234,9.00,Business Travel 
ECGD,ECGD,12-Jan-24,Overseas Travel/Subsistence,SPoCC,Clarity Travel Ltd frmly Mawasem Ltd,234,9.00,Business Travel 
ECGD,ECGD,12-Jan-24,Overseas Travel/Subsistence,SPoCC,Clarity Travel Ltd frmly Mawasem Ltd,234,9.00,Business Travel 
ECGD,ECGD,12-Jan-24,Overseas Travel/Subsistence,SPoCC,Clarity Travel Ltd frmly Mawasem Ltd,234,9.00,Business Travel 
ECGD,ECGD,12-Jan-24,Overseas Travel/Subsistence,SPoCC,Clarity Travel Ltd frmly Mawasem Ltd,234,9.00,Business Travel 
ECGD,ECGD,12-Jan-24,Overseas Travel/Subsistence,SPoCC,Clarity Travel Ltd frmly Mawasem Ltd,234,9.00,Business Travel 
ECGD,ECGD,12-Jan-24,Overseas Travel/Subsistence,SPoCC,Clarity Travel Ltd frmly Mawasem Ltd,234,103.20,Business Travel 
ECGD,ECGD,12-Jan-24,Overseas Travel/Subsistence,SPoCC,Clarity Travel Ltd frmly Mawasem Ltd,234,190.00,Business Travel 
ECGD,ECGD,12-Jan-24,Overseas Travel/Subsistence,OCCMC,Clarity Travel Ltd frmly Mawasem Ltd,234,226.25,Business Travel 
ECGD,ECGD,12-Jan-24,Overseas Travel/Subsistence,SPoCC,Clarity Travel Ltd frmly Mawasem Ltd,234,248.00,Business Travel 
ECGD,ECGD,12-Jan-24,Overseas Travel/Subsistence,SPoCC,Clarity Travel Ltd frmly Mawasem Ltd,234,272.95,Business Travel 
ECGD,ECGD,12-Jan-24,Overseas Travel/Subsistence,SPoCC,Clarity Travel Ltd frmly Mawasem Ltd,234,430.16,Business Travel 
ECGD,ECGD,12-Jan-24,Overseas Travel/Subsistence,SPoCC,Clarity Travel Ltd frmly Mawasem Ltd,234,632.78,Business Travel 
ECGD,ECGD,12-Jan-24,Overseas Travel/Subsistence,SPoCC,Clarity Travel Ltd frmly Mawasem Ltd,234,"1,214.96",Business Travel 
ECGD,ECGD,12-Jan-24,Overseas Travel/Subsistence,OCCMC,Clarity Travel Ltd frmly Mawasem Ltd,234,"1,214.96",Business Travel 
ECGD,ECGD,12-Jan-24,Overseas Travel/Subsistence,SPoCC,Clarity Travel Ltd frmly Mawasem Ltd,234,"1,574.96",Business Travel 
ECGD,ECGD,12-Jan-24,Overseas Travel/Subsistence,SPoCC,Clarity Travel Ltd frmly Mawasem Ltd,234,"1,754.53",Business Travel 
ECGD,ECGD,12-Jan-24,Overseas Travel/Subsistence,SPoCC,Clarity Travel Ltd frmly Mawasem Ltd,234,"1,754.53",Business Travel 
ECGD,ECGD,12-Jan-24,Overseas Travel/Subsistence,SPoCC,Clarity Travel Ltd frmly Mawasem Ltd,234,"1,754.53",Business Travel 
ECGD,ECGD,12-Jan-24,Overseas Travel/Subsistence,SPoCC,Clarity Travel Ltd frmly Mawasem Ltd,234,"3,695.21",Business Travel 
ECGD,ECGD,12-Jan-24,Overseas Travel/Subsistence,Special Situations Division,Clarity Travel Ltd frmly Mawasem Ltd,234,3.50,Business Travel 
ECGD,ECGD,12-Jan-24,Overseas Travel/Subsistence,Special Situations Division,Clarity Travel Ltd frmly Mawasem Ltd,234,3.50,Business Travel 
ECGD,ECGD,12-Jan-24,Overseas Travel/Subsistence,Special Situations Division,Clarity Travel Ltd frmly Mawasem Ltd,234,7.00,Business Travel 
ECGD,ECGD,12-Jan-24,Overseas Travel/Subsistence,Special Situations Division,Clarity Travel Ltd frmly Mawasem Ltd,234,7.00,Business Travel 
ECGD,ECGD,12-Jan-24,Overseas Travel/Subsistence,Special Situations Division,Clarity Travel Ltd frmly Mawasem Ltd,234,7.00,Business Travel 
ECGD,ECGD,12-Jan-24,Overseas Travel/Subsistence,Special Situations Division,Clarity Travel Ltd frmly Mawasem Ltd,234,75.82,Business Travel 
ECGD,ECGD,12-Jan-24,Overseas Travel/Subsistence,Special Situations Division,Clarity Travel Ltd frmly Mawasem Ltd,234,177.65,Business Travel 
ECGD,ECGD,12-Jan-24,Overseas Travel/Subsistence,Special Situations Division,Clarity Travel Ltd frmly Mawasem Ltd,234,227.53,Business Travel 
ECGD,ECGD,12-Jan-24,Overseas Travel/Subsistence,Special Situations Division,Clarity Travel Ltd frmly Mawasem Ltd,234,265.82,Business Travel 
ECGD,ECGD,12-Jan-24,Overseas Travel/Subsistence,Special Situations Division,Clarity Travel Ltd frmly Mawasem Ltd,234,543.42,Business Travel 
ECGD,ECGD,22-Jan-24,External Meeting Rooms,Business Group _ Main,Clarity Travel Ltd frmly Mawasem Ltd,235,0.00,External Meeting Rooms
ECGD,ECGD,22-Jan-24,External Meeting Rooms,Business Group _ Main,Clarity Travel Ltd frmly Mawasem Ltd,235,22.64,External Meeting Rooms
ECGD,ECGD,22-Jan-24,External Meeting Rooms,HRD,Clarity Travel Ltd frmly Mawasem Ltd,235,495.00,External Meeting Rooms
ECGD,ECGD,22-Jan-24,Home Travel /Subsistence,Business Group _ Main,Clarity Travel Ltd frmly Mawasem Ltd,235,1.00,Business Travel 
ECGD,ECGD,22-Jan-24,Home Travel /Subsistence,Business Group _ Main,Clarity Travel Ltd frmly Mawasem Ltd,235,2.00,Business Travel 
ECGD,ECGD,22-Jan-24,Home Travel /Subsistence,Business Group _ Main,Clarity Travel Ltd frmly Mawasem Ltd,235,2.00,Business Travel 
ECGD,ECGD,22-Jan-24,Home Travel /Subsistence,Business Group _ Main,Clarity Travel Ltd frmly Mawasem Ltd,235,2.00,Business Travel 
ECGD,ECGD,22-Jan-24,Home Travel /Subsistence,Business Group _ Main,Clarity Travel Ltd frmly Mawasem Ltd,235,2.00,Business Travel 
ECGD,ECGD,22-Jan-24,Home Travel /Subsistence,Business Group _ Main,Clarity Travel Ltd frmly Mawasem Ltd,235,2.00,Business Travel 
ECGD,ECGD,22-Jan-24,Home Travel /Subsistence,Business Group _ Main,Clarity Travel Ltd frmly Mawasem Ltd,235,2.00,Business Travel 
ECGD,ECGD,22-Jan-24,Home Travel /Subsistence,Business Group _ Main,Clarity Travel Ltd frmly Mawasem Ltd,235,2.00,Business Travel 
ECGD,ECGD,22-Jan-24,Home Travel /Subsistence,Business Group _ Main,Clarity Travel Ltd frmly Mawasem Ltd,235,2.00,Business Travel 
ECGD,ECGD,22-Jan-24,Home Travel /Subsistence,Business Group _ Main,Clarity Travel Ltd frmly Mawasem Ltd,235,2.00,Business Travel 
ECGD,ECGD,22-Jan-24,Home Travel /Subsistence,Business Group _ Main,Clarity Travel Ltd frmly Mawasem Ltd,235,2.00,Business Travel 
ECGD,ECGD,22-Jan-24,Home Travel /Subsistence,Business Group _ Main,Clarity Travel Ltd frmly Mawasem Ltd,235,2.00,Business Travel 
ECGD,ECGD,22-Jan-24,Home Travel /Subsistence,OCCMC,Clarity Travel Ltd frmly Mawasem Ltd,235,2.00,Business Travel 
ECGD,ECGD,22-Jan-24,Home Travel /Subsistence,Business Group _ Main,Clarity Travel Ltd frmly Mawasem Ltd,235,3.00,Business Travel 
ECGD,ECGD,22-Jan-24,Home Travel /Subsistence,Business Group _ Main,Clarity Travel Ltd frmly Mawasem Ltd,235,3.50,Business Travel 
ECGD,ECGD,22-Jan-24,Home Travel /Subsistence,Business Group _ Main,Clarity Travel Ltd frmly Mawasem Ltd,235,3.50,Business Travel 
ECGD,ECGD,22-Jan-24,Home Travel /Subsistence,Business Group _ Main,Clarity Travel Ltd frmly Mawasem Ltd,235,35.60,Business Travel 
ECGD,ECGD,22-Jan-24,Home Travel /Subsistence,Business Group _ Main,Clarity Travel Ltd frmly Mawasem Ltd,235,55.20,Business Travel 
ECGD,ECGD,22-Jan-24,Home Travel /Subsistence,Business Group _ Main,Clarity Travel Ltd frmly Mawasem Ltd,235,68.33,Business Travel 
ECGD,ECGD,22-Jan-24,Home Travel /Subsistence,Business Group _ Main,Clarity Travel Ltd frmly Mawasem Ltd,235,70.00,Business Travel 
ECGD,ECGD,22-Jan-24,Home Travel /Subsistence,Business Group _ Main,Clarity Travel Ltd frmly Mawasem Ltd,235,70.00,Business Travel 
ECGD,ECGD,22-Jan-24,Home Travel /Subsistence,Business Group _ Main,Clarity Travel Ltd frmly Mawasem Ltd,235,70.00,Business Travel 
ECGD,ECGD,22-Jan-24,Home Travel /Subsistence,Business Group _ Main,Clarity Travel Ltd frmly Mawasem Ltd,235,70.00,Business Travel 
ECGD,ECGD,22-Jan-24,Home Travel /Subsistence,Business Group _ Main,Clarity Travel Ltd frmly Mawasem Ltd,235,70.00,Business Travel 
ECGD,ECGD,22-Jan-24,Home Travel /Subsistence,Business Group _ Main,Clarity Travel Ltd frmly Mawasem Ltd,235,70.00,Business Travel 
ECGD,ECGD,22-Jan-24,Home Travel /Subsistence,Business Group _ Main,Clarity Travel Ltd frmly Mawasem Ltd,235,70.00,Business Travel 
ECGD,ECGD,22-Jan-24,Home Travel /Subsistence,Business Group _ Main,Clarity Travel Ltd frmly Mawasem Ltd,235,76.16,Business Travel 
ECGD,ECGD,22-Jan-24,Home Travel /Subsistence,Business Group _ Main,Clarity Travel Ltd frmly Mawasem Ltd,235,135.30,Business Travel 
ECGD,ECGD,22-Jan-24,Home Travel /Subsistence,OCCMC,Clarity Travel Ltd frmly Mawasem Ltd,235,137.50,Business Travel 
ECGD,ECGD,22-Jan-24,Home Travel /Subsistence,Business Group _ Main,Clarity Travel Ltd frmly Mawasem Ltd,235,140.00,Business Travel 
ECGD,ECGD,22-Jan-24,Home Travel /Subsistence,Business Group _ Main,Clarity Travel Ltd frmly Mawasem Ltd,235,150.45,Business Travel 
ECGD,ECGD,22-Jan-24,Home Travel /Subsistence,Business Group _ Main,Clarity Travel Ltd frmly Mawasem Ltd,235,251.50,Business Travel 
ECGD,ECGD,22-Jan-24,Home Travel /Subsistence,Digital and Data Division,Clarity Travel Ltd frmly Mawasem Ltd,235,2.00,Business Travel 
ECGD,ECGD,22-Jan-24,Home Travel /Subsistence,Digital and Data Division,Clarity Travel Ltd frmly Mawasem Ltd,235,2.00,Business Travel 
ECGD,ECGD,22-Jan-24,Home Travel /Subsistence,Digital and Data Division,Clarity Travel Ltd frmly Mawasem Ltd,235,2.00,Business Travel 
ECGD,ECGD,22-Jan-24,Home Travel /Subsistence,Digital and Data Division,Clarity Travel Ltd frmly Mawasem Ltd,235,48.00,Business Travel 
ECGD,ECGD,22-Jan-24,Home Travel /Subsistence,Digital and Data Division,Clarity Travel Ltd frmly Mawasem Ltd,235,48.00,Business Travel 
ECGD,ECGD,22-Jan-24,Home Travel /Subsistence,Digital and Data Division,Clarity Travel Ltd frmly Mawasem Ltd,235,48.00,Business Travel 
ECGD,ECGD,22-Jan-24,Home Travel /Subsistence,HRD,Clarity Travel Ltd frmly Mawasem Ltd,235,135.33,Business Travel 
ECGD,ECGD,22-Jan-24,Home Travel /Subsistence,OCCMC,Clarity Travel Ltd frmly Mawasem Ltd,235,-203.50,Business Travel 
ECGD,ECGD,22-Jan-24,Home Travel /Subsistence,Risk Approval Division,Clarity Travel Ltd frmly Mawasem Ltd,235,1.00,Business Travel 
ECGD,ECGD,22-Jan-24,Home Travel /Subsistence,Risk Approval Division,Clarity Travel Ltd frmly Mawasem Ltd,235,1.00,Business Travel 
ECGD,ECGD,22-Jan-24,Home Travel /Subsistence,Risk Approval Division,Clarity Travel Ltd frmly Mawasem Ltd,235,67.50,Business Travel 
ECGD,ECGD,22-Jan-24,Home Travel /Subsistence,Risk Approval Division,Clarity Travel Ltd frmly Mawasem Ltd,235,160.30,Business Travel 
ECGD,ECGD,22-Jan-24,Home Travel /Subsistence,SPoCC,Clarity Travel Ltd frmly Mawasem Ltd,235,-70.30,Business Travel 
ECGD,ECGD,22-Jan-24,Home Travel /Subsistence,SPoCC,Clarity Travel Ltd frmly Mawasem Ltd,235,1.00,Business Travel 
ECGD,ECGD,22-Jan-24,Home Travel /Subsistence,SPoCC,Clarity Travel Ltd frmly Mawasem Ltd,235,2.00,Business Travel 
ECGD,ECGD,22-Jan-24,Home Travel /Subsistence,SPoCC,Clarity Travel Ltd frmly Mawasem Ltd,235,2.00,Business Travel 
ECGD,ECGD,22-Jan-24,Home Travel /Subsistence,SPoCC,Clarity Travel Ltd frmly Mawasem Ltd,235,2.00,Business Travel 
ECGD,ECGD,22-Jan-24,Home Travel /Subsistence,SPoCC,Clarity Travel Ltd frmly Mawasem Ltd,235,3.00,Business Travel 
ECGD,ECGD,22-Jan-24,Home Travel /Subsistence,SPoCC,Clarity Travel Ltd frmly Mawasem Ltd,235,7.00,Business Travel 
ECGD,ECGD,22-Jan-24,Home Travel /Subsistence,SPoCC,Clarity Travel Ltd frmly Mawasem Ltd,235,52.60,Business Travel 
ECGD,ECGD,22-Jan-24,Home Travel /Subsistence,SPoCC,Clarity Travel Ltd frmly Mawasem Ltd,235,52.60,Business Travel 
ECGD,ECGD,22-Jan-24,Home Travel /Subsistence,SPoCC,Clarity Travel Ltd frmly Mawasem Ltd,235,87.98,Business Travel 
ECGD,ECGD,22-Jan-24,Home Travel /Subsistence,SPoCC,Clarity Travel Ltd frmly Mawasem Ltd,235,106.50,Business Travel 
ECGD,ECGD,22-Jan-24,Home Travel /Subsistence,SPoCC,Clarity Travel Ltd frmly Mawasem Ltd,235,156.00,Business Travel 
ECGD,ECGD,22-Jan-24,Home Travel /Subsistence,SPoCC,Clarity Travel Ltd frmly Mawasem Ltd,235,204.00,Business Travel 
ECGD,ECGD,22-Jan-24,Home Travel /Subsistence,Special Situations Division,Clarity Travel Ltd frmly Mawasem Ltd,235,163.94,Business Travel 
ECGD,ECGD,22-Jan-24,Overseas Travel (Case Related),Business Group _ Main,Clarity Travel Ltd frmly Mawasem Ltd,235,2.00,Business Travel 
ECGD,ECGD,22-Jan-24,Overseas Travel (Case Related),Business Group _ Main,Clarity Travel Ltd frmly Mawasem Ltd,235,7.00,Business Travel 
ECGD,ECGD,22-Jan-24,Overseas Travel (Case Related),Business Group _ Main,Clarity Travel Ltd frmly Mawasem Ltd,235,7.00,Business Travel 
ECGD,ECGD,22-Jan-24,Overseas Travel (Case Related),Business Group _ Main,Clarity Travel Ltd frmly Mawasem Ltd,235,7.00,Business Travel 
ECGD,ECGD,22-Jan-24,Overseas Travel (Case Related),Business Group _ Main,Clarity Travel Ltd frmly Mawasem Ltd,235,7.00,Business Travel 
ECGD,ECGD,22-Jan-24,Overseas Travel (Case Related),Business Group _ Main,Clarity Travel Ltd frmly Mawasem Ltd,235,7.00,Business Travel 
ECGD,ECGD,22-Jan-24,Overseas Travel (Case Related),Business Group _ Main,Clarity Travel Ltd frmly Mawasem Ltd,235,7.00,Business Travel 
ECGD,ECGD,22-Jan-24,Overseas Travel (Case Related),Business Group _ Main,Clarity Travel Ltd frmly Mawasem Ltd,235,7.00,Business Travel 
ECGD,ECGD,22-Jan-24,Overseas Travel (Case Related),Business Group _ Main,Clarity Travel Ltd frmly Mawasem Ltd,235,9.00,Business Travel 
ECGD,ECGD,22-Jan-24,Overseas Travel (Case Related),Business Group _ Main,Clarity Travel Ltd frmly Mawasem Ltd,235,9.00,Business Travel 
ECGD,ECGD,22-Jan-24,Overseas Travel (Case Related),Business Group _ Main,Clarity Travel Ltd frmly Mawasem Ltd,235,9.00,Business Travel 
ECGD,ECGD,22-Jan-24,Overseas Travel (Case Related),Business Group _ Main,Clarity Travel Ltd frmly Mawasem Ltd,235,80.00,Business Travel 
ECGD,ECGD,22-Jan-24,Overseas Travel (Case Related),Business Group _ Main,Clarity Travel Ltd frmly Mawasem Ltd,235,80.00,Business Travel 
ECGD,ECGD,22-Jan-24,Overseas Travel (Case Related),Business Group _ Main,Clarity Travel Ltd frmly Mawasem Ltd,235,230.50,Business Travel 
ECGD,ECGD,22-Jan-24,Overseas Travel (Case Related),Business Group _ Main,Clarity Travel Ltd frmly Mawasem Ltd,235,230.50,Business Travel 
ECGD,ECGD,22-Jan-24,Overseas Travel (Case Related),Business Group _ Main,Clarity Travel Ltd frmly Mawasem Ltd,235,230.50,Business Travel 
ECGD,ECGD,22-Jan-24,Overseas Travel (Case Related),Business Group _ Main,Clarity Travel Ltd frmly Mawasem Ltd,235,266.13,Business Travel 
ECGD,ECGD,22-Jan-24,Overseas Travel (Case Related),Business Group _ Main,Clarity Travel Ltd frmly Mawasem Ltd,235,344.28,Business Travel 
ECGD,ECGD,22-Jan-24,Overseas Travel (Case Related),Business Group _ Main,Clarity Travel Ltd frmly Mawasem Ltd,235,516.28,Business Travel 
ECGD,ECGD,22-Jan-24,Overseas Travel (Case Related),Business Group _ Main,Clarity Travel Ltd frmly Mawasem Ltd,235,"4,875.10",Business Travel 
ECGD,ECGD,22-Jan-24,Overseas Travel (Case Related),Business Group _ Main,Clarity Travel Ltd frmly Mawasem Ltd,235,"4,875.10",Business Travel 
ECGD,ECGD,22-Jan-24,Overseas Travel (Case Related),Business Group _ Main,Clarity Travel Ltd frmly Mawasem Ltd,235,"4,875.10",Business Travel 
ECGD,ECGD,22-Jan-24,Overseas Travel (Case Related),OCCMC,Clarity Travel Ltd frmly Mawasem Ltd,235,2.00,Overseas staff
ECGD,ECGD,22-Jan-24,Overseas Travel (Case Related),OCCMC,Clarity Travel Ltd frmly Mawasem Ltd,235,2.00,Overseas staff
ECGD,ECGD,22-Jan-24,Overseas Travel (Case Related),OCCMC,Clarity Travel Ltd frmly Mawasem Ltd,235,2.00,Overseas staff
ECGD,ECGD,22-Jan-24,Overseas Travel (Case Related),OCCMC,Clarity Travel Ltd frmly Mawasem Ltd,235,2.00,Overseas staff
ECGD,ECGD,22-Jan-24,Overseas Travel (Case Related),OCCMC,Clarity Travel Ltd frmly Mawasem Ltd,235,2.00,Overseas staff
ECGD,ECGD,22-Jan-24,Overseas Travel (Case Related),OCCMC,Clarity Travel Ltd frmly Mawasem Ltd,235,2.00,Overseas staff
ECGD,ECGD,22-Jan-24,Overseas Travel (Case Related),OCCMC,Clarity Travel Ltd frmly Mawasem Ltd,235,7.00,Overseas staff
ECGD,ECGD,22-Jan-24,Overseas Travel (Case Related),OCCMC,Clarity Travel Ltd frmly Mawasem Ltd,235,7.00,Overseas staff
ECGD,ECGD,22-Jan-24,Overseas Travel (Case Related),OCCMC,Clarity Travel Ltd frmly Mawasem Ltd,235,293.96,Overseas staff
ECGD,ECGD,22-Jan-24,Overseas Travel (Case Related),OCCMC,Clarity Travel Ltd frmly Mawasem Ltd,235,293.96,Overseas staff
ECGD,ECGD,22-Jan-24,Overseas Travel (Case Related),OCCMC,Clarity Travel Ltd frmly Mawasem Ltd,235,404.28,Overseas staff
ECGD,ECGD,22-Jan-24,Overseas Travel (Case Related),OCCMC,Clarity Travel Ltd frmly Mawasem Ltd,235,404.28,Overseas staff
ECGD,ECGD,22-Jan-24,Overseas Travel (Case Related),OCCMC,Clarity Travel Ltd frmly Mawasem Ltd,235,603.75,Overseas staff
ECGD,ECGD,22-Jan-24,Overseas Travel (Case Related),OCCMC,Clarity Travel Ltd frmly Mawasem Ltd,235,603.75,Overseas staff
ECGD,ECGD,22-Jan-24,Overseas Travel (Case Related),OCCMC,Clarity Travel Ltd frmly Mawasem Ltd,235,"3,459.51",Overseas staff
ECGD,ECGD,22-Jan-24,Overseas Travel (Case Related),OCCMC,Clarity Travel Ltd frmly Mawasem Ltd,235,"3,459.51",Overseas staff
ECGD,ECGD,22-Jan-24,Overseas Travel (Case Related),Portfolio Management Division,Clarity Travel Ltd frmly Mawasem Ltd,235,2.00,Business Travel 
ECGD,ECGD,22-Jan-24,Overseas Travel (Case Related),Portfolio Management Division,Clarity Travel Ltd frmly Mawasem Ltd,235,14.00,Business Travel 
ECGD,ECGD,22-Jan-24,Overseas Travel (Case Related),Portfolio Management Division,Clarity Travel Ltd frmly Mawasem Ltd,235,14.00,Business Travel 
ECGD,ECGD,22-Jan-24,Overseas Travel (Case Related),Portfolio Management Division,Clarity Travel Ltd frmly Mawasem Ltd,235,223.83,Business Travel 
ECGD,ECGD,22-Jan-24,Overseas Travel (Case Related),Portfolio Management Division,Clarity Travel Ltd frmly Mawasem Ltd,235,223.83,Business Travel 
ECGD,ECGD,22-Jan-24,Overseas Travel (Case Related),Portfolio Management Division,Clarity Travel Ltd frmly Mawasem Ltd,235,359.56,Business Travel 
ECGD,ECGD,22-Jan-24,Overseas Travel (Case Related),Risk Approval Division,Clarity Travel Ltd frmly Mawasem Ltd,235,-363.90,Business Travel 
ECGD,ECGD,22-Jan-24,Overseas Travel (Case Related),SPoCC,Clarity Travel Ltd frmly Mawasem Ltd,235,2.00,Business Travel 
ECGD,ECGD,22-Jan-24,Overseas Travel (Case Related),SPoCC,Clarity Travel Ltd frmly Mawasem Ltd,235,7.00,Business Travel 
ECGD,ECGD,22-Jan-24,Overseas Travel (Case Related),SPoCC,Clarity Travel Ltd frmly Mawasem Ltd,235,900.56,Business Travel 
ECGD,ECGD,22-Jan-24,Overseas Travel (Case Related),SPoCC,Clarity Travel Ltd frmly Mawasem Ltd,235,"1,215.17",Business Travel 
ECGD,ECGD,22-Jan-24,Overseas Travel (Case Related),Special Situations Division,Clarity Travel Ltd frmly Mawasem Ltd,235,2.00,Overseas Travel subsistence
ECGD,ECGD,22-Jan-24,Overseas Travel (Case Related),Special Situations Division,Clarity Travel Ltd frmly Mawasem Ltd,235,7.00,Overseas Travel subsistence
ECGD,ECGD,22-Jan-24,Overseas Travel (Case Related),Special Situations Division,Clarity Travel Ltd frmly Mawasem Ltd,235,123.98,Overseas Travel subsistence
ECGD,ECGD,22-Jan-24,Overseas Travel (Case Related),Special Situations Division,Clarity Travel Ltd frmly Mawasem Ltd,235,545.92,Overseas Travel subsistence
ECGD,ECGD,22-Jan-24,Overseas Travel/Subsistence,Business Group _ Main,Clarity Travel Ltd frmly Mawasem Ltd,235,2.00,Business Travel 
ECGD,ECGD,22-Jan-24,Overseas Travel/Subsistence,Business Group _ Main,Clarity Travel Ltd frmly Mawasem Ltd,235,2.00,Business Travel 
ECGD,ECGD,22-Jan-24,Overseas Travel/Subsistence,Business Group _ Main,Clarity Travel Ltd frmly Mawasem Ltd,235,2.00,Business Travel 
ECGD,ECGD,22-Jan-24,Overseas Travel/Subsistence, SPoCC,Clarity Travel Ltd frmly Mawasem Ltd,235,2.00,Business Travel 
ECGD,ECGD,22-Jan-24,Overseas Travel/Subsistence,Business Group _ Main,Clarity Travel Ltd frmly Mawasem Ltd,235,2.00,Business Travel 
ECGD,ECGD,22-Jan-24,Overseas Travel/Subsistence,Business Group _ Main,Clarity Travel Ltd frmly Mawasem Ltd,235,2.00,Business Travel 
ECGD,ECGD,22-Jan-24,Overseas Travel/Subsistence,Business Group _ Main,Clarity Travel Ltd frmly Mawasem Ltd,235,2.00,Business Travel 
ECGD,ECGD,22-Jan-24,Overseas Travel/Subsistence,Business Group _ Main,Clarity Travel Ltd frmly Mawasem Ltd,235,134.32,Business Travel 
ECGD,ECGD,22-Jan-24,Overseas Travel/Subsistence,Business Group _ Main,Clarity Travel Ltd frmly Mawasem Ltd,235,134.32,Business Travel 
ECGD,ECGD,22-Jan-24,Overseas Travel/Subsistence,Business Group _ Main,Clarity Travel Ltd frmly Mawasem Ltd,235,190.47,Business Travel 
ECGD,ECGD,22-Jan-24,Overseas Travel/Subsistence,Business Group _ Main,Clarity Travel Ltd frmly Mawasem Ltd,235,573.60,Business Travel 
ECGD,ECGD,22-Jan-24,Overseas Travel/Subsistence,Business Group _ Main,Clarity Travel Ltd frmly Mawasem Ltd,235,573.60,Business Travel 
ECGD,ECGD,22-Jan-24,Overseas Travel/Subsistence,Business Group _ Main,Clarity Travel Ltd frmly Mawasem Ltd,235,573.60,Business Travel 
ECGD,ECGD,22-Jan-24,Overseas Travel/Subsistence, SPoCC,Clarity Travel Ltd frmly Mawasem Ltd,235,906.40,Business Travel 
ECGD,ECGD,22-Jan-24,Overseas Travel/Subsistence,Financial Crime Due Diligence,Clarity Travel Ltd frmly Mawasem Ltd,235,2.00,Business Travel 
ECGD,ECGD,22-Jan-24,Overseas Travel/Subsistence,Financial Crime Due Diligence,Clarity Travel Ltd frmly Mawasem Ltd,235,577.70,Business Travel 
ECGD,ECGD,22-Jan-24,Overseas Travel/Subsistence,HRD,Clarity Travel Ltd frmly Mawasem Ltd,235,7.00,Business Travel 
ECGD,ECGD,22-Jan-24,Overseas Travel/Subsistence,HRD,Clarity Travel Ltd frmly Mawasem Ltd,235,7.00,Business Travel 
ECGD,ECGD,22-Jan-24,Overseas Travel/Subsistence,HRD,Clarity Travel Ltd frmly Mawasem Ltd,235,"4,598.90",Business Travel 
ECGD,ECGD,22-Jan-24,Overseas Travel/Subsistence,HRD,Clarity Travel Ltd frmly Mawasem Ltd,235,"4,598.90",Business Travel 
ECGD,ECGD,22-Jan-24,Overseas Travel/Subsistence,LD,Clarity Travel Ltd frmly Mawasem Ltd,235,3.50,Business Travel 
ECGD,ECGD,22-Jan-24,Overseas Travel/Subsistence,LD,Clarity Travel Ltd frmly Mawasem Ltd,235,3.50,Business Travel 
ECGD,ECGD,22-Jan-24,Overseas Travel/Subsistence,LD,Clarity Travel Ltd frmly Mawasem Ltd,235,142.24,Business Travel 
ECGD,ECGD,22-Jan-24,Overseas Travel/Subsistence,LD,Clarity Travel Ltd frmly Mawasem Ltd,235,142.24,Business Travel 
ECGD,ECGD,22-Jan-24,Overseas Travel/Subsistence,OCCMC,Clarity Travel Ltd frmly Mawasem Ltd,235,-875.00,Business Travel 
ECGD,ECGD,22-Jan-24,Overseas Travel/Subsistence,OCCMC,Clarity Travel Ltd frmly Mawasem Ltd,235,-298.59,Business Travel 
ECGD,ECGD,22-Jan-24,Overseas Travel/Subsistence,OCCMC,Clarity Travel Ltd frmly Mawasem Ltd,235,-271.78,Business Travel 
ECGD,ECGD,22-Jan-24,Overseas Travel/Subsistence,OCCMC,Clarity Travel Ltd frmly Mawasem Ltd,235,-2.00,Business Travel 
ECGD,ECGD,22-Jan-24,Overseas Travel/Subsistence,OCCMC,Clarity Travel Ltd frmly Mawasem Ltd,235,-2.00,Business Travel 
ECGD,ECGD,22-Jan-24,Overseas Travel/Subsistence,OCCMC,Clarity Travel Ltd frmly Mawasem Ltd,235,2.00,Business Travel 
ECGD,ECGD,22-Jan-24,Overseas Travel/Subsistence,OCCMC,Clarity Travel Ltd frmly Mawasem Ltd,235,7.00,Business Travel 
ECGD,ECGD,22-Jan-24,Overseas Travel/Subsistence,OCCMC,Clarity Travel Ltd frmly Mawasem Ltd,235,7.00,Business Travel 
ECGD,ECGD,22-Jan-24,Overseas Travel/Subsistence,OCCMC,Clarity Travel Ltd frmly Mawasem Ltd,235,7.00,Business Travel 
ECGD,ECGD,22-Jan-24,Overseas Travel/Subsistence,OCCMC,Clarity Travel Ltd frmly Mawasem Ltd,235,7.00,Business Travel 
ECGD,ECGD,22-Jan-24,Overseas Travel/Subsistence,OCCMC,Clarity Travel Ltd frmly Mawasem Ltd,235,7.00,Business Travel 
ECGD,ECGD,22-Jan-24,Overseas Travel/Subsistence,OCCMC,Clarity Travel Ltd frmly Mawasem Ltd,235,7.00,Business Travel 
ECGD,ECGD,22-Jan-24,Overseas Travel/Subsistence,OCCMC,Clarity Travel Ltd frmly Mawasem Ltd,235,7.00,Business Travel 
ECGD,ECGD,22-Jan-24,Overseas Travel/Subsistence,OCCMC,Clarity Travel Ltd frmly Mawasem Ltd,235,7.00,Business Travel 
ECGD,ECGD,22-Jan-24,Overseas Travel/Subsistence,OCCMC,Clarity Travel Ltd frmly Mawasem Ltd,235,7.00,Business Travel 
ECGD,ECGD,22-Jan-24,Overseas Travel/Subsistence,OCCMC,Clarity Travel Ltd frmly Mawasem Ltd,235,7.00,Business Travel 
ECGD,ECGD,22-Jan-24,Overseas Travel/Subsistence,OCCMC,Clarity Travel Ltd frmly Mawasem Ltd,235,9.00,Business Travel 
ECGD,ECGD,22-Jan-24,Overseas Travel/Subsistence,OCCMC,Clarity Travel Ltd frmly Mawasem Ltd,235,9.00,Business Travel 
ECGD,ECGD,22-Jan-24,Overseas Travel/Subsistence,OCCMC,Clarity Travel Ltd frmly Mawasem Ltd,235,9.00,Business Travel 
ECGD,ECGD,22-Jan-24,Overseas Travel/Subsistence,OCCMC,Clarity Travel Ltd frmly Mawasem Ltd,235,9.00,Business Travel 
ECGD,ECGD,22-Jan-24,Overseas Travel/Subsistence,OCCMC,Clarity Travel Ltd frmly Mawasem Ltd,235,14.00,Business Travel 
ECGD,ECGD,22-Jan-24,Overseas Travel/Subsistence,OCCMC,Clarity Travel Ltd frmly Mawasem Ltd,235,162.19,Business Travel 
ECGD,ECGD,22-Jan-24,Overseas Travel/Subsistence,OCCMC,Clarity Travel Ltd frmly Mawasem Ltd,235,431.70,Business Travel 
ECGD,ECGD,22-Jan-24,Overseas Travel/Subsistence,OCCMC,Clarity Travel Ltd frmly Mawasem Ltd,235,434.50,Business Travel 
ECGD,ECGD,22-Jan-24,Overseas Travel/Subsistence,OCCMC,Clarity Travel Ltd frmly Mawasem Ltd,235,434.50,Business Travel 
ECGD,ECGD,22-Jan-24,Overseas Travel/Subsistence,OCCMC,Clarity Travel Ltd frmly Mawasem Ltd,235,549.70,Business Travel 
ECGD,ECGD,22-Jan-24,Overseas Travel/Subsistence,OCCMC,Clarity Travel Ltd frmly Mawasem Ltd,235,650.75,Business Travel 
ECGD,ECGD,22-Jan-24,Overseas Travel/Subsistence,OCCMC,Clarity Travel Ltd frmly Mawasem Ltd,235,716.21,Business Travel 
ECGD,ECGD,22-Jan-24,Overseas Travel/Subsistence,OCCMC,Clarity Travel Ltd frmly Mawasem Ltd,235,717.58,Business Travel 
ECGD,ECGD,22-Jan-24,Overseas Travel/Subsistence,OCCMC,Clarity Travel Ltd frmly Mawasem Ltd,235,"1,158.87",Business Travel 
ECGD,ECGD,22-Jan-24,Overseas Travel/Subsistence,OCCMC,Clarity Travel Ltd frmly Mawasem Ltd,235,"1,361.00",Business Travel 
ECGD,ECGD,22-Jan-24,Overseas Travel/Subsistence,OCCMC,Clarity Travel Ltd frmly Mawasem Ltd,235,"1,574.90",Business Travel 
ECGD,ECGD,22-Jan-24,Overseas Travel/Subsistence,OCCMC,Clarity Travel Ltd frmly Mawasem Ltd,235,"1,621.90",Business Travel 
ECGD,ECGD,22-Jan-24,Overseas Travel/Subsistence,OCCMC,Clarity Travel Ltd frmly Mawasem Ltd,235,"2,024.10",Business Travel 
ECGD,ECGD,22-Jan-24,Overseas Travel/Subsistence,OCCMC,Clarity Travel Ltd frmly Mawasem Ltd,235,"2,024.10",Business Travel 
ECGD,ECGD,22-Jan-24,Overseas Travel/Subsistence,OCCMC,Clarity Travel Ltd frmly Mawasem Ltd,235,"2,174.80",Business Travel 
ECGD,ECGD,22-Jan-24,Overseas Travel/Subsistence,Portfolio Management Division,Clarity Travel Ltd frmly Mawasem Ltd,235,"-4,708.91",Business Travel 
ECGD,ECGD,22-Jan-24,Overseas Travel/Subsistence,SPoCC,Clarity Travel Ltd frmly Mawasem Ltd,235,2.00,Business Travel 
ECGD,ECGD,22-Jan-24,Overseas Travel/Subsistence,SPoCC,Clarity Travel Ltd frmly Mawasem Ltd,235,2.00,Business Travel 
ECGD,ECGD,22-Jan-24,Overseas Travel/Subsistence,SPoCC,Clarity Travel Ltd frmly Mawasem Ltd,235,7.00,Business Travel 
ECGD,ECGD,22-Jan-24,Overseas Travel/Subsistence,SPoCC,Clarity Travel Ltd frmly Mawasem Ltd,235,7.00,Business Travel 
ECGD,ECGD,22-Jan-24,Overseas Travel/Subsistence,SPoCC,Clarity Travel Ltd frmly Mawasem Ltd,235,21.00,Business Travel 
ECGD,ECGD,22-Jan-24,Overseas Travel/Subsistence,SPoCC,Clarity Travel Ltd frmly Mawasem Ltd,235,133.98,Business Travel 
ECGD,ECGD,22-Jan-24,Overseas Travel/Subsistence,SPoCC,Clarity Travel Ltd frmly Mawasem Ltd,235,187.55,Business Travel 
ECGD,ECGD,22-Jan-24,Overseas Travel/Subsistence,SPoCC,Clarity Travel Ltd frmly Mawasem Ltd,235,247.29,Business Travel 
ECGD,ECGD,22-Jan-24,Overseas Travel/Subsistence,SPoCC,Clarity Travel Ltd frmly Mawasem Ltd,235,390.32,Business Travel 
ECGD,ECGD,22-Jan-24,Overseas Travel/Subsistence,SPoCC,Clarity Travel Ltd frmly Mawasem Ltd,235,454.69,Business Travel 
ECGD,ECGD,22-Jan-24,Overseas Travel/Subsistence,Special Situations Division,Clarity Travel Ltd frmly Mawasem Ltd,235,3.50,Business Travel 
ECGD,ECGD,22-Jan-24,Overseas Travel/Subsistence,Special Situations Division,Clarity Travel Ltd frmly Mawasem Ltd,235,91.00,Business Travel 
ECGD,ECGD,15-Jan-24,Technical Services (Recoverable),Special Situations Division,Aergo Capital Limited USD,1475,5.09,Technical Services (Recoverable)
ECGD,ECGD,15-Jan-24,Technical Services (Recoverable),Special Situations Division,Aergo Capital Limited USD,1475,5.10,Technical Services (Recoverable)
ECGD,ECGD,15-Jan-24,Technical Services (Recoverable),Special Situations Division,Aergo Capital Limited USD,1475,5.10,Technical Services (Recoverable)
ECGD,ECGD,15-Jan-24,Technical Services (Recoverable),Special Situations Division,Aergo Capital Limited USD,1475,"6,186.94",Technical Services (Recoverable)
ECGD,ECGD,15-Jan-24,Technical Services (Recoverable),Special Situations Division,Aergo Capital Limited USD,1475,"29,825.38",Technical Services (Recoverable)
ECGD,ECGD,18-Jan-24,Technical Services (Recoverable),Special Situations Division,SASOF II (H) Aviation Ireland Limite,1478,"466,495.35",Technical Services (Recoverable)
ECGD,ECGD,21-Jan-24,Technical Services (Recoverable),Special Situations Division,SGI Aviation Services B.V.,1479,"106,050.32",Technical Services (Recoverable)
ECGD,ECGD,21-Jan-24,Technical Services (Recoverable),Special Situations Division,SGI Aviation Services B.V.,1480,"55,886.91",Technical Services (Recoverable)
ECGD,ECGD,21-Jan-24,Technical Services (Recoverable),Special Situations Division,SGI Aviation Services B.V.,1481,"29,100.10",Technical Services (Recoverable)
ECGD,ECGD,26-Jan-24,Technical Services (Recoverable),Special Situations Division,Allen & Overy,1483,"34,256.15",Technical Services (Recoverable)
ECGD,ECGD,26-Jan-24,Technical Services (Recoverable),Special Situations Division,Allen & Overy,1484,"26,385.80",Technical Services (Recoverable)
ECGD,ECGD,26-Jan-24,Legal Services (Recoverable),LD,Allen & Overy,1486,"37,993.64",Legal Recoverable 
ECGD,ECGD,26-Jan-24,Legal Services (Recoverable),LD,Allen & Overy,1487,"33,951.86",Legal Recoverable 
ECGD,ECGD,26-Jan-24,Legal Services (Recoverable),LD,Allen & Overy,1488,"33,645.77",Legal Recoverable 
ECGD,ECGD,26-Jan-24,Legal Services (Recoverable),LD,White & Case LLP EUR Account,1489,"20,756.09",Legal Recoverable 
ECGD,ECGD,26-Jan-24,Legal Services (Recoverable),LD,White & Case LLP EUR Account,1489,"20,756.09",Legal Recoverable 
ECGD,ECGD,26-Jan-24,Legal Services (Recoverable),LD,White & Case LLP EUR Account,1489,"20,756.09",Legal Recoverable 
ECGD,ECGD,26-Jan-24,Legal Services (Recoverable),LD,White & Case LLP EUR Account,1489,"20,756.09",Legal Recoverable 
ECGD,ECGD,26-Jan-24,Legal Services (Recoverable),LD,White & Case LLP EUR Account,1489,"20,756.10",Legal Recoverable 
ECGD,ECGD,15-Jan-24,Online costs,IA,Gartner U.K. Limited,85117,"27,600.00",Online costs
ECGD,ECGD,06-Jan-24,IT Managed Services,ID,Risual Ltd,85120,"119,396.00",Business Travel 
ECGD,ECGD,07-Jan-24,IT Cloud and Hosting,ID,Bytes Software Services Ltd,85129,"64,084.03",Business Travel 
ECGD,ECGD,06-Jan-24,Agency - Interim Managers,HRD,Alexander Mann Solutions,85148,420.04,Interim Staff
ECGD,ECGD,06-Jan-24,Agency - Interim Managers,HRD,Alexander Mann Solutions,85148,"2,100.20",Interim Staff
ECGD,ECGD,06-Jan-24,Agency - Interim Managers,HRD,Alexander Mann Solutions,85148,"3,150.30",Interim Staff
ECGD,ECGD,06-Jan-24,Agency - Interim Managers,HRD,Alexander Mann Solutions,85148,"3,150.30",Interim Staff
ECGD,ECGD,06-Jan-24,Agency - Interim Managers,HRD,Alexander Mann Solutions,85148,"3,592.90",Interim Staff
ECGD,ECGD,06-Jan-24,Agency - Interim Managers,HRD,Alexander Mann Solutions,85148,"3,592.90",Interim Staff
ECGD,ECGD,06-Jan-24,Agency - Interim Managers,HRD,Alexander Mann Solutions,85148,"3,592.90",Interim Staff
ECGD,ECGD,06-Jan-24,Agency - Interim Managers,HRD,Alexander Mann Solutions,85148,"4,200.40",Interim Staff
ECGD,ECGD,06-Jan-24,Agency - Specialist Contractors,HRD,Alexander Mann Solutions,85148,875.80,Interim Staff
ECGD,ECGD,06-Jan-24,Agency - Specialist Contractors,HRD,Alexander Mann Solutions,85148,"1,050.10",Interim Staff
ECGD,ECGD,06-Jan-24,Agency - Specialist Contractors,HRD,Alexander Mann Solutions,85148,"1,539.81",Interim Staff
ECGD,ECGD,06-Jan-24,Agency - Specialist Contractors,HRD,Alexander Mann Solutions,85148,"1,539.83",Interim Staff
ECGD,ECGD,06-Jan-24,Agency - Specialist Contractors,HRD,Alexander Mann Solutions,85148,"2,771.68",Interim Staff
ECGD,ECGD,06-Jan-24,Agency - Specialist Contractors,HRD,Alexander Mann Solutions,85148,"3,079.65",Interim Staff
ECGD,ECGD,06-Jan-24,Agency - Specialist Contractors,HRD,Alexander Mann Solutions,85148,"3,118.14",Interim Staff
ECGD,ECGD,06-Jan-24,Agency - Specialist Contractors,HRD,Alexander Mann Solutions,85148,"3,336.30",Interim Staff
ECGD,ECGD,06-Jan-24,Agency - Specialist Contractors,HRD,Alexander Mann Solutions,85148,"3,336.30",Interim Staff
ECGD,ECGD,06-Jan-24,Agency - Specialist Contractors,HRD,Alexander Mann Solutions,85148,"3,412.80",Interim Staff
ECGD,ECGD,06-Jan-24,Agency - Specialist Contractors,HRD,Alexander Mann Solutions,85148,"3,412.80",Interim Staff
ECGD,ECGD,06-Jan-24,Agency - Specialist Contractors,HRD,Alexander Mann Solutions,85148,"3,464.60",Interim Staff
ECGD,ECGD,06-Jan-24,Agency - Specialist Contractors,HRD,Alexander Mann Solutions,85148,"3,464.60",Interim Staff
ECGD,ECGD,06-Jan-24,Agency - Specialist Contractors,HRD,Alexander Mann Solutions,85148,"3,464.60",Interim Staff
ECGD,ECGD,06-Jan-24,Agency - Specialist Contractors,HRD,Alexander Mann Solutions,85148,"3,464.60",Interim Staff
ECGD,ECGD,06-Jan-24,Agency - Specialist Contractors,HRD,Alexander Mann Solutions,85148,"3,496.85",Interim Staff
ECGD,ECGD,06-Jan-24,Agency - Specialist Contractors,HRD,Alexander Mann Solutions,85148,"3,592.90",Interim Staff
ECGD,ECGD,06-Jan-24,Agency - Specialist Contractors,HRD,Alexander Mann Solutions,85148,"3,592.90",Interim Staff
ECGD,ECGD,06-Jan-24,Agency - Specialist Contractors,HRD,Alexander Mann Solutions,85148,"3,849.60",Interim Staff
ECGD,ECGD,06-Jan-24,Agency - Specialist Contractors,HRD,Alexander Mann Solutions,85148,"3,849.60",Interim Staff
ECGD,ECGD,06-Jan-24,Agency - Specialist Contractors,HRD,Alexander Mann Solutions,85148,"3,937.85",Interim Staff
ECGD,ECGD,06-Jan-24,Agency - Specialist Contractors,HRD,Alexander Mann Solutions,85148,"3,937.85",Interim Staff
ECGD,ECGD,06-Jan-24,Agency - Temporary Staff,HRD,Alexander Mann Solutions,85148,609.87,Interim Staff
ECGD,ECGD,06-Jan-24,Agency - Temporary Staff,HRD,Alexander Mann Solutions,85148,905.76,Interim Staff
ECGD,ECGD,06-Jan-24,Project Consultancy Costs,Change Board,Price Waterhouse Coopers,85150,"109,337.00",Project Contractors
ECGD,ECGD,06-Jan-24,Project Agency - Specialist Cont,Change Board,Softwire Technology Limited,85158,"23,960.00",Project Contractors
ECGD,ECGD,11-Jan-24,Project Agency - Specialist Cont,Change Board,Softwire Technology Limited,85171,"57,790.00",Project Contractors
ECGD,ECGD,11-Jan-24,Project Agency - Specialist Cont,Change Board,Softwire Technology Limited,85172,"21,760.00",Project Contractors
ECGD,ECGD,11-Jan-24,Agency - Interim Managers,HRD,Alexander Mann Solutions,85182,"1,575.15",Interim Staff
ECGD,ECGD,11-Jan-24,Agency - Interim Managers,HRD,Alexander Mann Solutions,85182,"1,890.18",Interim Staff
ECGD,ECGD,11-Jan-24,Agency - Interim Managers,HRD,Alexander Mann Solutions,85182,"2,155.74",Interim Staff
ECGD,ECGD,11-Jan-24,Agency - Interim Managers,HRD,Alexander Mann Solutions,85182,"2,520.24",Interim Staff
ECGD,ECGD,11-Jan-24,Agency - Interim Managers,HRD,Alexander Mann Solutions,85182,"2,625.25",Interim Staff
ECGD,ECGD,11-Jan-24,Agency - Specialist Contractors,HRD,Alexander Mann Solutions,85182,513.27,Interim Staff
ECGD,ECGD,11-Jan-24,Agency - Specialist Contractors,HRD,Alexander Mann Solutions,85182,"1,539.81",Interim Staff
ECGD,ECGD,11-Jan-24,Agency - Specialist Contractors,HRD,Alexander Mann Solutions,85182,"2,001.78",Interim Staff
ECGD,ECGD,11-Jan-24,Agency - Specialist Contractors,HRD,Alexander Mann Solutions,85182,"2,078.76",Interim Staff
ECGD,ECGD,11-Jan-24,Agency - Specialist Contractors,HRD,Alexander Mann Solutions,85182,"2,098.11",Interim Staff
ECGD,ECGD,11-Jan-24,Agency - Specialist Contractors,HRD,Alexander Mann Solutions,85182,"3,150.30",Interim Staff
ECGD,ECGD,11-Jan-24,Agency - Specialist Contractors,HRD,Alexander Mann Solutions,85182,"3,150.30",Interim Staff
ECGD,ECGD,11-Jan-24,Agency - Temporary Staff,HRD,Alexander Mann Solutions,85182,514.08,Interim Staff
ECGD,ECGD,11-Jan-24,Agency - Temporary Staff,HRD,Alexander Mann Solutions,85182,538.56,Interim Staff
ECGD,ECGD,16-Jan-24,Project Agency - Specialist Cont,Change Board,Nomensa Ltd,85184,"59,125.00",Project Contractors
ECGD,ECGD,16-Jan-24,Project Agency - Specialist Cont,Change Board,Nomensa Ltd,85186,"22,000.00",Project Contractors
ECGD,ECGD,15-Jan-24,Overseas Export Managers,OCCMC,Foreign & Commonwealth Office,85187,"61,080.80",Overseas Staff
ECGD,ECGD,15-Jan-24,Project Agency - Specialist Cont,Change Board,Nomensa Ltd,85190,"28,275.00",Project Contractors
ECGD,ECGD,15-Jan-24,Project Agency - Specialist Cont,Change Board,Nomensa Ltd,85194,"28,950.00",Project Contractors
ECGD,ECGD,15-Jan-24,Project Agency - Specialist Cont,Change Board,Nomensa Ltd,85197,"65,575.00",Project Contractors
ECGD,ECGD,19-Jan-24,Agency - Interim Managers,HRD,Alexander Mann Solutions,85208,525.05,Interim Staff
ECGD,ECGD,19-Jan-24,Agency - Interim Managers,HRD,Alexander Mann Solutions,85208,"1,260.12",Interim Staff
ECGD,ECGD,19-Jan-24,Agency - Interim Managers,HRD,Alexander Mann Solutions,85208,"1,575.15",Interim Staff
ECGD,ECGD,19-Jan-24,Agency - Interim Managers,HRD,Alexander Mann Solutions,85208,"2,100.20",Interim Staff
ECGD,ECGD,19-Jan-24,Agency - Interim Managers,HRD,Alexander Mann Solutions,85208,"2,155.74",Interim Staff
ECGD,ECGD,19-Jan-24,Agency - Interim Managers,HRD,Alexander Mann Solutions,85208,"2,520.24",Interim Staff
ECGD,ECGD,19-Jan-24,Agency - Interim Managers,HRD,Alexander Mann Solutions,85208,"2,520.24",Interim Staff
ECGD,ECGD,19-Jan-24,Agency - Interim Managers,HRD,Alexander Mann Solutions,85208,"2,874.32",Interim Staff
ECGD,ECGD,19-Jan-24,Agency - Interim Managers,HRD,Alexander Mann Solutions,85208,"3,360.32",Interim Staff
ECGD,ECGD,19-Jan-24,Agency - Specialist Contractors,HRD,Alexander Mann Solutions,85208,718.58,Interim Staff
ECGD,ECGD,19-Jan-24,Agency - Specialist Contractors,HRD,Alexander Mann Solutions,85208,"1,026.55",Interim Staff
ECGD,ECGD,19-Jan-24,Agency - Specialist Contractors,HRD,Alexander Mann Solutions,85208,"1,347.36",Interim Staff
ECGD,ECGD,19-Jan-24,Agency - Specialist Contractors,HRD,Alexander Mann Solutions,85208,"2,047.68",Interim Staff
ECGD,ECGD,19-Jan-24,Agency - Specialist Contractors,HRD,Alexander Mann Solutions,85208,"2,053.08",Interim Staff
ECGD,ECGD,19-Jan-24,Agency - Specialist Contractors,HRD,Alexander Mann Solutions,85208,"2,232.75",Interim Staff
ECGD,ECGD,19-Jan-24,Agency - Specialist Contractors,HRD,Alexander Mann Solutions,85208,"2,520.24",Interim Staff
ECGD,ECGD,19-Jan-24,Agency - Specialist Contractors,HRD,Alexander Mann Solutions,85208,"2,669.04",Interim Staff
ECGD,ECGD,19-Jan-24,Agency - Specialist Contractors,HRD,Alexander Mann Solutions,85208,"2,730.24",Interim Staff
ECGD,ECGD,19-Jan-24,Agency - Specialist Contractors,HRD,Alexander Mann Solutions,85208,"2,874.32",Interim Staff
ECGD,ECGD,19-Jan-24,Agency - Specialist Contractors,HRD,Alexander Mann Solutions,85208,"3,079.65",Interim Staff
ECGD,ECGD,19-Jan-24,Agency - Specialist Contractors,HRD,Alexander Mann Solutions,85208,"3,150.28",Interim Staff
ECGD,ECGD,19-Jan-24,Agency - Specialist Contractors,HRD,Alexander Mann Solutions,85208,"3,150.28",Interim Staff
ECGD,ECGD,19-Jan-24,Agency - Specialist Contractors,HRD,Alexander Mann Solutions,85208,"3,464.64",Interim Staff
ECGD,ECGD,19-Jan-24,Agency - Temporary Staff,HRD,Alexander Mann Solutions,85208,183.60,Interim Staff
ECGD,ECGD,19-Jan-24,Agency - Temporary Staff,HRD,Alexander Mann Solutions,85208,550.80,Interim Staff
ECGD,ECGD,19-Jan-24,Agency - Temporary Staff,HRD,Alexander Mann Solutions,85208,722.16,Interim Staff
ECGD,ECGD,19-Jan-24,Agency - Temporary Staff,HRD,Alexander Mann Solutions,85208,722.16,Interim Staff
ECGD,ECGD,19-Jan-24,Agency - Temporary Staff,HRD,Alexander Mann Solutions,85208,734.40,Interim Staff
ECGD,ECGD,19-Jan-24,Agency - Temporary Staff,HRD,Alexander Mann Solutions,85208,881.28,Interim Staff
ECGD,ECGD,19-Jan-24,Agency - Temporary Staff,HRD,Alexander Mann Solutions,85208,893.52,Interim Staff
ECGD,ECGD,19-Jan-24,Agency - Interim Managers,HRD,Alexander Mann Solutions,85217,"2,100.20",Interim Staff
ECGD,ECGD,19-Jan-24,Agency - Interim Managers,HRD,Alexander Mann Solutions,85217,"2,155.74",Interim Staff
ECGD,ECGD,19-Jan-24,Agency - Interim Managers,HRD,Alexander Mann Solutions,85217,"2,625.25",Interim Staff
ECGD,ECGD,19-Jan-24,Agency - Interim Managers,HRD,Alexander Mann Solutions,85217,"2,625.25",Interim Staff
ECGD,ECGD,19-Jan-24,Agency - Interim Managers,HRD,Alexander Mann Solutions,85217,"2,874.32",Interim Staff
ECGD,ECGD,19-Jan-24,Agency - Interim Managers,HRD,Alexander Mann Solutions,85217,"3,150.30",Interim Staff
ECGD,ECGD,19-Jan-24,Agency - Interim Managers,HRD,Alexander Mann Solutions,85217,"3,150.30",Interim Staff
ECGD,ECGD,19-Jan-24,Agency - Interim Managers,HRD,Alexander Mann Solutions,85217,"3,233.61",Interim Staff
ECGD,ECGD,19-Jan-24,Agency - Interim Managers,HRD,Alexander Mann Solutions,85217,"3,592.90",Interim Staff
ECGD,ECGD,19-Jan-24,Agency - Interim Managers,HRD,Alexander Mann Solutions,85217,"4,200.40",Interim Staff
ECGD,ECGD,19-Jan-24,Agency - Specialist Contractors,HRD,Alexander Mann Solutions,85217,"1,539.81",Interim Staff
ECGD,ECGD,19-Jan-24,Agency - Specialist Contractors,HRD,Alexander Mann Solutions,85217,"1,539.81",Interim Staff
ECGD,ECGD,19-Jan-24,Agency - Specialist Contractors,HRD,Alexander Mann Solutions,85217,"1,924.80",Interim Staff
ECGD,ECGD,19-Jan-24,Agency - Specialist Contractors,HRD,Alexander Mann Solutions,85217,"2,566.35",Interim Staff
ECGD,ECGD,19-Jan-24,Agency - Specialist Contractors,HRD,Alexander Mann Solutions,85217,"3,150.30",Interim Staff
ECGD,ECGD,19-Jan-24,Agency - Specialist Contractors,HRD,Alexander Mann Solutions,85217,"3,412.80",Interim Staff
ECGD,ECGD,19-Jan-24,Agency - Specialist Contractors,HRD,Alexander Mann Solutions,85217,"3,412.80",Interim Staff
ECGD,ECGD,19-Jan-24,Agency - Specialist Contractors,HRD,Alexander Mann Solutions,85217,"3,496.85",Interim Staff
ECGD,ECGD,19-Jan-24,Agency - Specialist Contractors,HRD,Alexander Mann Solutions,85217,"3,592.90",Interim Staff
ECGD,ECGD,19-Jan-24,Agency - Specialist Contractors,HRD,Alexander Mann Solutions,85217,"3,721.25",Interim Staff
ECGD,ECGD,19-Jan-24,Agency - Specialist Contractors,HRD,Alexander Mann Solutions,85217,"3,849.60",Interim Staff
ECGD,ECGD,19-Jan-24,Agency - Specialist Contractors,HRD,Alexander Mann Solutions,85217,"3,937.85",Interim Staff
ECGD,ECGD,19-Jan-24,Agency - Specialist Contractors,HRD,Alexander Mann Solutions,85217,"3,937.85",Interim Staff
ECGD,ECGD,19-Jan-24,Agency - Temporary Staff,HRD,Alexander Mann Solutions,85217,734.40,Interim Staff
ECGD,ECGD,19-Jan-24,Agency - Temporary Staff,HRD,Alexander Mann Solutions,85217,905.76,Interim Staff
ECGD,ECGD,21-Jan-24,Online costs,Special Situations Division,IBA Group Ltd,85218,"27,852.00",Online costs
ECGD,ECGD,26-Jan-24,Overseas Export Managers,OCCMC,Foreign & Commonwealth Office,85241,"70,840.11",Overseas Staff
ECGD,ECGD,26-Jan-24,Marketing,OCCMC,CW Publishing Limited,85250,"25,000.00",Marketing and Comunication 
ECGD,ECGD,26-Jan-24,Agency - Interim Managers,HRD,Alexander Mann Solutions,85254,"2,100.20",Interim Staff
ECGD,ECGD,26-Jan-24,Agency - Interim Managers,HRD,Alexander Mann Solutions,85254,"2,625.25",Interim Staff
ECGD,ECGD,26-Jan-24,Agency - Interim Managers,HRD,Alexander Mann Solutions,85254,"2,625.25",Interim Staff
ECGD,ECGD,26-Jan-24,Agency - Interim Managers,HRD,Alexander Mann Solutions,85254,"2,874.32",Interim Staff
ECGD,ECGD,26-Jan-24,Agency - Interim Managers,HRD,Alexander Mann Solutions,85254,"3,150.30",Interim Staff
ECGD,ECGD,26-Jan-24,Agency - Interim Managers,HRD,Alexander Mann Solutions,85254,"3,592.90",Interim Staff
ECGD,ECGD,26-Jan-24,Agency - Interim Managers,HRD,Alexander Mann Solutions,85254,"3,592.90",Interim Staff
ECGD,ECGD,26-Jan-24,Agency - Interim Managers,HRD,Alexander Mann Solutions,85254,"4,200.40",Interim Staff
ECGD,ECGD,26-Jan-24,Agency - Specialist Contractors,HRD,Alexander Mann Solutions,85254,"1,437.16",Interim Staff
ECGD,ECGD,26-Jan-24,Agency - Specialist Contractors,HRD,Alexander Mann Solutions,85254,"1,539.81",Interim Staff
ECGD,ECGD,26-Jan-24,Agency - Specialist Contractors,HRD,Alexander Mann Solutions,85254,"1,924.80",Interim Staff
ECGD,ECGD,26-Jan-24,Agency - Specialist Contractors,HRD,Alexander Mann Solutions,85254,"2,566.35",Interim Staff
ECGD,ECGD,26-Jan-24,Agency - Specialist Contractors,HRD,Alexander Mann Solutions,85254,"3,002.67",Interim Staff
ECGD,ECGD,26-Jan-24,Agency - Specialist Contractors,HRD,Alexander Mann Solutions,85254,"3,079.65",Interim Staff
ECGD,ECGD,26-Jan-24,Agency - Specialist Contractors,HRD,Alexander Mann Solutions,85254,"3,150.30",Interim Staff
ECGD,ECGD,26-Jan-24,Agency - Specialist Contractors,HRD,Alexander Mann Solutions,85254,"3,336.30",Interim Staff
ECGD,ECGD,26-Jan-24,Agency - Specialist Contractors,HRD,Alexander Mann Solutions,85254,"3,412.80",Interim Staff
ECGD,ECGD,26-Jan-24,Agency - Specialist Contractors,HRD,Alexander Mann Solutions,85254,"3,412.80",Interim Staff
ECGD,ECGD,26-Jan-24,Agency - Specialist Contractors,HRD,Alexander Mann Solutions,85254,"3,496.85",Interim Staff
ECGD,ECGD,26-Jan-24,Agency - Specialist Contractors,HRD,Alexander Mann Solutions,85254,"3,592.90",Interim Staff
ECGD,ECGD,26-Jan-24,Agency - Specialist Contractors,HRD,Alexander Mann Solutions,85254,"3,592.90",Interim Staff
ECGD,ECGD,26-Jan-24,Agency - Specialist Contractors,HRD,Alexander Mann Solutions,85254,"3,721.25",Interim Staff
ECGD,ECGD,26-Jan-24,Agency - Specialist Contractors,HRD,Alexander Mann Solutions,85254,"3,849.60",Interim Staff
ECGD,ECGD,26-Jan-24,Agency - Specialist Contractors,HRD,Alexander Mann Solutions,85254,"3,937.85",Interim Staff
ECGD,ECGD,26-Jan-24,Agency - Specialist Contractors,HRD,Alexander Mann Solutions,85254,"3,937.85",Interim Staff
ECGD,ECGD,26-Jan-24,Agency - Specialist Contractors,HRD,Alexander Mann Solutions,85254,"4,106.20",Interim Staff
ECGD,ECGD,26-Jan-24,Agency - Temporary Staff,HRD,Alexander Mann Solutions,85254,538.56,Interim Staff
ECGD,ECGD,26-Jan-24,Agency - Temporary Staff,HRD,Alexander Mann Solutions,85254,538.56,Interim Staff
ECGD,ECGD,26-Jan-24,Agency - Temporary Staff,HRD,Alexander Mann Solutions,85254,738.30,Interim Staff
ECGD,ECGD,26-Jan-24,Agency - Temporary Staff,HRD,Alexander Mann Solutions,85254,757.08,Interim Staff
ECGD,ECGD,26-Jan-24,Agency - Temporary Staff,HRD,Alexander Mann Solutions,85254,761.04,Interim Staff
ECGD,ECGD,26-Jan-24,Agency - Temporary Staff,HRD,Alexander Mann Solutions,85254,873.66,Interim Staff
ECGD,ECGD,26-Jan-24,Agency - Temporary Staff,HRD,Alexander Mann Solutions,85254,905.76,Interim Staff
ECGD,ECGD,26-Jan-24,Agency - Temporary Staff,HRD,Alexander Mann Solutions,85254,905.76,Interim Staff
ECGD,ECGD,26-Jan-24,Project Agency - Specialist Cont,Change Board,Softwire Technology Limited,85256,"37,355.00",Project Contractors
ECGD,ECGD,31-Jan-24,IT Software Licensing & Subscription,ID,Fidelity National Info Services,85265,"100,173.36",IT Systems 
ECGD,ECGD,31-Jan-24,Learning and Development,HRD,Cabinet Office,85277,"22,500.00",Learning and Development 
